Cogmind - Beta 16 @@@ ROGUE MODE // 2025.12.07 @ 13:03:26 Player: Cherman0 Result: Destroyed by Combat Programmer with EMDS Performance ------------- Evolutions (8) 4000 Regions Visited (28) 5600 Robots Destroyed (379) 1895 Value Destroyed (23337) 23337 Prototype IDs (103) 2060 Alien Tech Used (10) 2000 Bonus (17482) 17482 TOTAL SCORE: 56374 Bonus ------- Triggered High Security 500 High Alert Combat Kills 8774 Follower Combat Kills 5187 Awakened Behemoth Slayer 1000 Network Hubs Disabled 200 Registered with UFD 300 Met Imprinter 300 Destroyed Z-Imprinter 1000 Met Zhirov 300 Met R17 at Cetus 500 Met R17 at Research 2000 Scanned by Researcher 500 Pursued by Intercept 500 Friendly Fire -3579 Cogmind --------- Core Integrity 0/1450 Matter 234/300 Energy 350/350 System Corruption 23% +Membrane Temperature Cool (0) Movement Core (50) +NEM 1 Location -2/Section 7 Parts ------- > --- POWER (3) -------- (None) > --- PROPULSION (6) --- (None) > --- UTILITY (11) ----- Experimental Core Analyzer Advanced Hacking Suite > --- WEAPON (3) ------- CR-A16's Behemoth Slayer > --- INVENTORY (5) ---- Experimental Focal Shield Experimental Force Field Advanced Point Defense System Subatomic Replicator Advanced Remote Datajack Peak State ------------ > --- POWER ------------ Improved Quantum Reactor Vortex Chain Reactor > --- PROPULSION ------- High-density Centrium Heavy Treads High-density Centrium Heavy Treads High-density Centrium Heavy Treads > --- UTILITY ---------- Experimental Heat Sink Huge Storage Unit Surveybot 24 Chip Experimental Core Analyzer Advanced Weapon Cycler Improved Transmission Jammer Heavy Regenerative Plating Graphene Brace Experimental Force Field Advanced Hacking Suite > --- WEAPON ----------- Heavy Gatling Laser Heavy Gatling Laser Enhanced Nova Cannon > --- INVENTORY -------- Improved Quantum Reactor Experimental Heat Sink Zionite Biocell Experimental Terrain Scanner Seismic Detector Advanced Kinecellerator Experimental Utility Shielding Experimental Focal Shield Experimental EM Shield Advanced Point Defense System Long-range Tractor Beam Advanced Recalibrator Amulet of Y3-NDR Transdimensional Reconstructor High-powered Transdimensional Reconstructor Core Membrane Navigation Efficiency Matrix Subatomic Replicator Compact HERF Cannon Enhanced Coil Gun Advanced KE Penetrator Advanced Remote Datajack Improved Plasma Cutter CR-A16's Behemoth Slayer [Rating: 213] Favorites ----------- Power Antimatter Reactor Engine Cooled Ion Engine Power Core Neutrino Core Reactor Antimatter Reactor Propulsion Heavy Treads Treads Heavy Treads Leg Aluminum Leg Wheel Compact Wheel Hover Unit Zionite Glidesys I Flight Unit Cooled Nuclear Pulse Thruster Utility Huge Storage Unit Device Experimental Heat Sink Storage Huge Storage Unit Processor Surveybot 24 Chip Hackware Advanced Hacking Suite Protection Enhanced Scrap Shield Weapon Heavy Beamcaster Energy Gun Heavy Beamcaster Energy Cannon Matter Neutralizer Ballistic Gun Advanced KE Penetrator Ballistic Cannon Battle Cannon Launcher Subdweller Shrapnel Launcher Special Weapon Improved Remote Datajack Impact Weapon Makeshift Hammer Slashing Weapon Makeshift Sword Piercing Weapon CR-A16's Pointy Stick Special Melee Weapon Dirty Datajack Build | -11 -10 -10 -10 -8 -8 -6 -6 -6 -6 -6 -6 -6 -5 -5 -5 -5 -5 -4 -4 -4 -4 -4 -4 -3 -3 -2 -2 -2 ------- Run | Yrd Mat Min Sub Rec Scr Fac Was Fac Low Low Zio Dee Pro Fac Upp Upp Zhi Pro Fac Ext Cet Arc Hub Res Qua Res Tes Sec Slots Evolved 16 | . . . . . . 8 . . . . . . . 2 . . . . 2 . . . . 2 . 2 . . Power 2 | . . . . . . 1 . . . . . . . . . . . . . . . . . . . 1 . . Propulsion 4 | . . . . . . 2 . . . . . . . 1 . . . . 1 . . . . . . . . . Utility 9 | . . . . . . 4 . . . . . . . 1 . . . . 1 . . . . 2 . 1 . . Weapon 1 | . . . . . . 1 . . . . . . . . . . . . . . . . . . . . . . Parts Attached 216 | 5 13 1 13 4 8 7 13 5 4 3 8 19 3 7 1 1 3 . 7 7 6 7 1 5 12 7 39 7 Power 25 | . 3 . . 1 . . 3 . . . 1 2 . 1 . . 1 . 1 2 . 1 . 1 2 1 5 . Engine 5 | . 3 . . 1 . . 1 . . . . . . . . . . . . . . . . . . . . . Core 2 | . . . . . . . . . . . . . . 1 . . . . . . . . . . . . 1 . Reactor 18 | . . . . . . . 2 . . . 1 2 . . . . 1 . 1 2 . 1 . 1 2 1 4 . Propulsion 39 | 2 2 . 3 . 2 5 2 1 . . 1 2 . 1 . . 1 . 1 1 3 . . . . . 12 . Treads 30 | 2 2 . . . 1 4 2 1 . . . . . 1 . . . . 1 1 3 . . . . . 12 . Leg 5 | . . . 1 . 1 1 . . . . 1 1 . . . . . . . . . . . . . . . . Wheel 2 | . . . 2 . . . . . . . . . . . . . . . . . . . . . . . . . Hover 1 | . . . . . . . . . . . . 1 . . . . . . . . . . . . . . . . Flight 1 | . . . . . . . . . . . . . . . . . 1 . . . . . . . . . . . Utility 95 | 2 5 1 3 1 2 2 4 2 3 2 3 11 3 5 1 . 1 . 3 1 3 4 1 4 4 5 16 3 Device 59 | 2 2 1 2 1 . 1 3 . 2 1 2 6 3 3 1 . . . 3 1 1 3 1 1 3 3 11 2 Storage 7 | . 2 . 1 . 1 . . . . . 1 1 . . . . . . . . . 1 . . . . . . Processor 8 | . . . . . . . . . . 1 . . . . . . . . . . 1 . . 3 . 2 . 1 Hackware 2 | . . . . . . 1 . . . . . . . 1 . . . . . . . . . . . . . . Protection 19 | . 1 . . . 1 . 1 2 1 . . 4 . 1 . . 1 . . . 1 . . . 1 . 5 . Artifact . | . . . . . . . . . . . . . . . . . . . . . . . . . . . . . Weapon 57 | 1 3 . 7 2 4 . 4 2 1 1 3 4 . . . 1 . . 2 3 . 2 . . 6 1 6 4 Energy Gun 15 | . 2 . . . 1 . 3 . . 1 . 3 . . . . . . . . . 1 . . . . 1 3 Energy Cannon 14 | . . . . . 3 . . . 1 . 2 1 . . . . . . 1 3 . . . . 1 1 . 1 Ballistic Gun 6 | 1 . . . . . . . 1 . . . . . . . . . . . . . . . . 3 . 1 . Ballistic Cannon 7 | . . . 3 1 . . 1 . . . . . . . . . . . . . . . . . . . 2 . Launcher 1 | . . . . . . . . 1 . . . . . . . . . . . . . . . . . . . . Special Weapon 8 | . 1 . 1 . . . . . . . . . . . . 1 . . 1 . . 1 . . 1 . 2 . Impact Weapon 1 | . . . 1 . . . . . . . . . . . . . . . . . . . . . . . . . Slashing Weapon 2 | . . . 2 . . . . . . . . . . . . . . . . . . . . . . . . . Piercing Weapon 2 | . . . . . . . . . . . 1 . . . . . . . . . . . . . 1 . . . Special Melee Weapon 1 | . . . . 1 . . . . . . . . . . . . . . . . . . . . . . . . Unidentified Prototypes 59 | . 1 . 1 . . . 1 1 1 1 3 12 . . . . 4 . 1 . 2 . . 2 3 . 19 7 Corrupted Parts 3 | . . . . . . . . . . . . . . . . . . . . . 3 . . . . . . . System Corruption 17 | . . . . . . . . . . . . . . . . . . . . . 17 . . . . . . . Parts Lost 40 | . 5 . 3 2 . . . . . . . 1 . . . . . . . 2 2 . . 1 . . 2 22 Power 5 | . 1 . . 1 . . . . . . . . . . . . . . . . . . . . . . . 3 Propulsion 9 | . 2 . 2 . . . . . . . . . . . . . . . . 1 1 . . . . . . 3 Utility 16 | . 1 . . . . . . . . . . 1 . . . . . . . . 1 . . . . . 1 12 Weapon 10 | . 1 . 1 1 . . . . . . . . . . . . . . . 1 . . . 1 . . 1 4 Highest Loss Streak 20 | . 3 . 2 2 . . . . . . . 1 . . . . . . . 1 1 . . 1 . . 2 20 To Critical Strikes 1 | . . . . . . . . . . . . . . . . . . . . . 1 . . . . . . . Average Backups 22 | 6 12 20 22 22 21 23 25 25 24 24 24 19 25 24 25 25 24 25 24 24 24 25 25 24 24 24 24 23 Power . | 1 1 1 1 . . . . . . . . 1 1 1 1 1 1 1 1 1 1 1 1 1 1 . . . Propulsion 1 | 4 3 3 3 3 2 3 4 4 3 3 2 1 2 1 1 1 1 1 . . . . . . . . . . Utility 12 | . 4 10 10 11 10 9 11 12 13 13 13 11 15 13 13 13 13 13 14 15 14 14 14 12 13 14 14 12 Weapon 5 | 1 2 6 7 6 6 7 6 6 5 5 5 3 5 5 6 6 5 5 4 4 4 6 5 5 5 4 4 4 Tool/Special . | . . . . . . . . . . . . . . . . . . . . . . . . . . . . . Unused Backups 66 | 3 4 . 10 . 12 3 1 4 1 1 3 9 . 1 1 . . . 2 1 . . . . 3 1 2 4 Power 3 | 1 . . . . . . . . . . . . . . . . . . . . . . . . 2 . . . Propulsion 11 | . 1 . . . 3 2 . 3 1 . 1 . . . . . . . . . . . . . . . . . Utility 34 | 1 1 . 4 . 6 1 1 . . 1 2 8 . 1 . . . . 2 1 . . . . 1 1 2 1 Weapon 14 | 1 2 . 6 . 3 . . 1 . . . 1 . . . . . . . . . . . . . . . . Tool/Special 4 | . . . . . . . . . . . . . . . 1 . . . . . . . . . . . . 3 Average Slot Usage (%) 85 | . 99 100 99 99 93 84 95 85 80 80 77 67 80 81 82 82 73 82 83 81 76 76 78 79 80 81 84 77 Engine 5 | . 14 14 14 13 13 6 10 6 6 6 5 1 6 2 . . . . . . . . . . . . . . Reactor 5 | . . . . . . . 1 6 6 6 6 11 6 5 5 5 7 11 10 10 10 10 10 9 9 13 12 7 Treads 13 | . 27 28 9 . . 16 21 12 13 13 13 12 13 17 17 17 16 17 21 18 13 15 15 14 14 13 16 12 Wheel 4 | . . . 14 28 27 4 . . . . . . . . . . . . . . . . . . . . . . Device 15 | . 12 14 14 14 11 18 20 20 11 12 13 10 20 17 17 17 17 17 20 21 15 14 15 18 15 16 16 19 Storage 7 | . 14 14 14 14 13 6 6 6 6 6 6 5 6 5 5 5 5 5 5 5 5 5 5 4 4 4 4 3 Processor 2 | . . . . . . . . . . . . . . . . . . . . . 5 5 5 9 9 12 12 7 Hackware 3 | . . . . . . 4 6 6 6 6 6 3 . 4 5 5 5 5 5 5 5 5 5 4 4 4 4 4 Protection 4 | . 1 . . . 2 6 6 6 7 6 6 6 6 5 5 5 5 5 5 5 5 5 5 4 7 4 4 4 Energy Gun 9 | . 14 28 9 . . . 12 15 16 20 16 10 17 12 17 16 1 16 6 3 . 2 . . . . . 5 Energy Cannon 2 | . . . . . . 1 . . . . . 1 2 3 . . . . 6 9 14 5 11 9 8 3 1 4 Ballistic Gun 1 | . 12 . . . . . . . . . . . . . . . . . . . . . . . 2 8 10 1 Ballistic Cannon 1 | . . . 8 17 3 13 2 . . . . . . . . . . . . . . . . . . . . . Special Weapon 1 | . . . 5 . . . . . . . . . . . . . 4 . 2 2 . 6 3 4 2 . . . Slashing Weapon 1 | . . . 3 6 11 . 4 4 2 . . . . . . . . . . . . . . . . . . . Peak Build Rating 213 | 8 14 14 19 25 30 53 83 85 91 95 101 104 103 117 115 112 117 120 134 139 149 150 150 166 168 182 205 213 Average Rating 91 | 6 9 13 15 20 22 47 68 82 87 92 90 88 96 112 107 107 99 109 129 134 133 143 145 161 162 176 182 199 On Entrance 95 | 6 7 14 14 19 25 21 53 83 83 90 93 101 97 103 115 107 110 117 109 131 131 149 150 142 163 165 180 194 Avg Prop Armor Cover (%) 10 | . . . 10 . . 8 . . . . . . . . . . . . . . . . . . . . 5 . Naked Turns 139 | . . . . . 139 . . . . . . . . . . . . . . . . . . . . . . . Heaviest Build 195 | 14 52 53 92 95 109 112 136 146 148 143 146 146 139 149 144 146 139 145 160 165 164 166 160 166 172 181 195 193 Greatest Support 280 | 40 40 40 40 32 32 112 145 145 145 145 145 145 145 175 175 175 175 175 205 215 240 240 240 240 240 240 270 280 Greatest Overweight (x) 5 | . 1 1 5 2 3 3 1 1 1 . 1 1 . . . . . . . . 1 . . . . 1 1 . Average Overweight (x) . | . . 1 3 2 1 1 . . . . . . . . . . . . . . . . . . . . . . Largest Inventory Capacity 25 | 8 20 20 25 25 25 25 25 25 25 25 25 25 25 25 25 25 25 25 25 25 25 25 25 25 25 25 25 25 Average Capacity 24 | 8 19 20 23 25 24 25 25 25 25 25 25 23 25 25 25 25 25 25 25 25 25 25 25 25 25 25 25 24 Most Carried 25 | 8 20 20 25 25 25 25 25 25 25 25 25 25 25 25 25 25 25 25 25 25 25 25 25 25 25 25 25 25 Average Carried 23 | 6 12 20 23 23 21 23 24 25 24 24 24 20 25 24 25 25 24 25 24 24 24 25 25 24 24 24 24 23 Final Capacity 25 | 8 20 20 25 25 25 25 25 25 25 25 25 25 25 25 25 25 25 25 25 25 25 25 25 25 25 25 25 5 Final Carried 25 | 8 20 20 25 24 25 25 25 25 25 25 25 25 25 25 25 25 25 25 25 25 25 25 25 25 25 25 25 5 Class Distribution -------------------- 54% | Scavenger-Tank 23% | Mutant 12% | Commander-Mutant 4% | Scavenger-Mutant 3% | Scavenger-Gunner Dominant Class ---------------- Mutant | -10/Materials Mutant | -10/Mines Mutant | -10/Subcaves Mutant | -8/Recycling Commander-Mutant | -8/Scraptown Commander-Mutant | -6/Factory Commander-Mutant | -6/Waste Scavenger-Mutant | -6/Factory Scavenger-Tank | -6/Lower Caves Scavenger-Tank | -6/Lower Caves Scavenger-Tank | -6/Zion Scavenger-Tank | -6/Deep Caves Scavenger-Tank | -5/Proximity Caves Scavenger-Tank | -5/Factory Scavenger-Tank | -5/Upper Caves Scavenger-Tank | -5/Upper Caves Mutant | -5/Zhirov Scavenger-Tank | -4/Proximity Caves Scavenger-Tank | -4/Factory Scavenger-Tank | -4/Extension Scavenger-Tank | -4/Cetus Scavenger-Tank | -4/Archives Scavenger-Tank | -4/Hub_04(d) Scavenger-Tank | -3/Research Scavenger-Tank | -3/Quarantine Scavenger-Gunner | -2/Research Scavenger-Tank | -2/Testing Scavenger-Tank | -2/Section 7 Resources | -11 -10 -10 -10 -8 -8 -6 -6 -6 -6 -6 -6 -6 -5 -5 -5 -5 -5 -4 -4 -4 -4 -4 -4 -3 -3 -2 -2 -2 ----------- Run | Yrd Mat Min Sub Rec Scr Fac Was Fac Low Low Zio Dee Pro Fac Upp Upp Zhi Pro Fac Ext Cet Arc Hub Res Qua Res Tes Sec Matter Collected 11687 | 272 518 60 205 210 208 194 210 290 217 134 118 562 140 189 40 92 74 260 162 467 114 617 104 339 664 1150 2844 1233 Remotely 879 | . . . . . . . . . . . . . . . . . . . . . . . . . . 150 511 218 Salvage Created 24512 | 190 652 285 . 272 . 155 848 120 128 128 88 705 271 438 50 . 115 412 1322 1523 591 617 349 221 1130 2352 3758 7792 Parts 948 | 17 34 14 . 11 . 4 12 2 . 7 5 12 11 14 2 . 2 10 52 59 18 38 15 5 50 132 214 208 Haulers Intercepted 7 | . 2 . . . . . . . . . . . . 2 . . . . . . . . . . . 1 1 1 Recyclers Shooed 9 | . 2 . . 1 . . . 1 . . . . . 1 . . . . 2 . . . . . . 2 . . Parts Field Recycled . | . . . . . . . . . . . . . . . . . . . . . . . . . . . . . Retrieved Matter . | . . . . . . . . . . . . . . . . . . . . . . . . . . . . . Parts Self-Destructed 107 | . . . 15 . . . . . 20 30 . . 11 . 1 2 2 26 . . . . . . . . . . Prevented 83 | . . . . . . . . . . 13 . . 9 . 12 12 . 37 . . . . . . . . . . Parts Restored 3 | . . . . . . . . . . . . . . . . . . . . . . . . 2 . . 1 . Broken 3 | . . . . . . . . . . . . . . . . . . . . . . . . 2 . . 1 . Kills | -11 -10 -10 -10 -8 -8 -6 -6 -6 -6 -6 -6 -6 -5 -5 -5 -5 -5 -4 -4 -4 -4 -4 -4 -3 -3 -2 -2 -2 ------- Run | Yrd Mat Min Sub Rec Scr Fac Was Fac Low Low Zio Dee Pro Fac Upp Upp Zhi Pro Fac Ext Cet Arc Hub Res Qua Res Tes Sec Combat Hostiles Destroyed 307 | . 13 10 . 3 . 3 1 . 1 2 . 5 6 4 1 . . 4 16 23 7 4 8 3 15 27 43 108 Melee 2 | . . . . . . . . . . . . 1 . . . . . . . 1 . . . . . . . . Guns 157 | . 13 10 . . . . 1 . . 2 . 2 4 2 1 . . 4 2 1 . . . . 4 19 42 50 Cannons 83 | . . . . 3 . 3 . . . . . . . 2 . . . . 7 12 . 3 6 3 8 3 . 33 Classes Destroyed 26 | 2 4 1 . 4 . 1 1 . . 1 . 2 1 . . . . . 1 2 . 1 . . . . 3 2 Worker 7 | . . 1 . . . . . . . . . . . . . . . . 1 . . . . . . 1 4 . Builder 12 | . . . . 1 . . . . . . . . . . . . . . . 2 . . 1 . . 2 3 3 Tunneler 5 | 5 . . . . . . . . . . . . . . . . . . . . . . . . . . . . Hauler 7 | . 2 . . . . . . . . . . . . 2 . . . . . . . . . . . 1 1 1 Recycler 10 | 1 2 . . 3 . . . 1 . . . . . 1 . . . . 1 . . . . . . 1 . . Operator 9 | . . . . . . . . . . . . . . . . . . . . . . 8 . . 1 . . . Drone 2 | . . . . . . . . . . . . . 2 . . . . . . . . . . . . . . . Watcher 14 | . 3 . . . . . . . . . . . . . . . . . 1 . 2 . 2 1 3 . . 2 Swarmer 29 | . 6 6 . . . . . . . . . . . 2 . . . . 1 5 . . 5 . . . 4 . Saboteur 5 | . . . . . . . . . . . . . . . . . . . . . . . . . . . . 5 Grunt 104 | . 7 4 . . . 2 . . 1 1 . . . 1 . . . 2 9 7 . . . 2 5 6 13 44 Brawler 11 | . . . . . . 1 . . . . . . . . . . . 1 . . . . . . . 1 1 7 Duelist 16 | . . . . . . . . . . . . . . . . . . . . 1 . . . . . . 2 13 Protector 2 | . . . . . . . . . . . . . . . . . . . . . . . . . . . 1 1 Researcher 1 | . . . . . . . . . . . . . . . . . . . . . . . . . . . 1 . Sentry 29 | . . . . 1 . . . . . . . . 1 . . . . 2 . 5 . 4 1 . . 3 . 12 Demolisher 1 | . . . . 1 . . . . . . . . . . . . . . . . . . . . . . . . Specialist 2 | . . . . . . . . . . . . . . . . . . . 2 . . . . . . . . . Hunter 17 | . . . . . . . . . . 1 . . 1 . 1 . . . 2 1 . . . 1 . 2 4 4 Programmer 66 | . . . . 1 . . . . . . . . 2 1 . . . . 2 2 . . 2 . 10 15 17 14 Behemoth 3 | . . . . . . . . . . . . . . . . . . . . 2 . . . . . . . 1 Compactor 1 | . . . . . . . 1 . . . . . . . . . . . . . . . . . . . . . Cetus Guard 7 | . . . . . . . . . . . . . . . . . . . . . 7 . . . . . . . S7 Guard 3 | . . . . . . . . . . . . . . . . . . . . . . . . . . . . 3 Enhanced Grunt 2 | . . . . . . . . . . . 1 1 . . . . . . . . . . . . . . . . Tracker 2 | . . . . . . . . . . . . . . . . . . . . . . . . . . . . 2 Investigator 1 | . . . . . . . . . . . . . . . . . . . . . . . . . . . . 1 Executioner 2 | . . . . . . . . . . . . . . . . . . . . . . . . . . . . 2 Fortress 1 | . . . . . . . . . . . . . . . . . . . . . . . . . . . 1 . Z-Light 2 | . . . . . . . . . . . . 2 . . . . . . . . . . . . . . . . Golem 3 | . . . . . . . . . . . . 3 . . . . . . . . . . . . . . . . Thug 2 | . . . . . . . . . . . . 1 . . . . . . . 1 . . . . . . . . Savage 1 | . . . . . . . . . . . . 1 . . . . . . . . . . . . . . . . Martyr 1 | . . . . . . . 1 . . . . . . . . . . . . . . . . . . . . . Best Kill Streak 20 | 5 3 3 . 2 . 3 1 1 1 1 . 2 2 2 1 . . 3 4 5 4 3 6 2 6 6 7 20 Combat Bots Only 19 | . 3 3 . 2 . 3 1 . 1 1 . 2 2 2 1 . . 3 4 5 4 1 5 2 5 6 5 19 Max Kills in Single Turn 2 | 1 1 2 . 1 . 1 1 1 1 1 1 1 1 2 1 . . 1 1 2 1 1 1 1 1 2 2 2 Gunslinging 1 | . . 1 . . . . . . . . . . . . . . . . . . . . . . . . 1 1 Exploded . | . . . . . . . . . . . . . . . . . . . . . . . . . . . . . Melee 1 | . . . . . . . . . . . . 1 . . . . . . . 1 . . . . . . . . Uniques/NPCs Destroyed 1 | . . . . . . . . . . . . 1 . . . . . . . . . . . . . . . . Z-Imprinter (-6/Deep Caves) Combat | -11 -10 -10 -10 -8 -8 -6 -6 -6 -6 -6 -6 -6 -5 -5 -5 -5 -5 -4 -4 -4 -4 -4 -4 -3 -3 -2 -2 -2 -------- Run | Yrd Mat Min Sub Rec Scr Fac Was Fac Low Low Zio Dee Pro Fac Upp Upp Zhi Pro Fac Ext Cet Arc Hub Res Qua Res Tes Sec Hostile Shots Fired 2234 | . 90 42 9 17 . 1 . . 19 12 . 37 25 10 9 4 . 18 112 106 63 22 45 12 97 118 294 1072 Missed 530 | . 22 20 5 3 . 1 . . 2 7 . 8 7 4 2 2 . 3 37 26 11 6 15 6 22 29 58 234 Hits 1704 | . 68 22 4 14 . . . . 17 5 . 29 18 6 7 2 . 15 75 80 52 16 30 6 75 89 236 838 Melee 47 | . . . . 2 . . . . . . . . . . . . . . . . . . . . . . 10 35 Projectile 1657 | . 68 22 4 12 . . . . 17 5 . 29 18 6 7 2 . 15 75 80 52 16 30 6 75 89 226 803 AOE 8 | . . . 1 3 . . . . . . . . 1 1 . . . . . . . . . . . . . 2 Critical Strikes 100 | . . . . . . . . . 1 . . . . . . . . 1 3 4 10 . 1 . 6 6 15 53 Actively Blocked 45 | . . . . . . . . . . . . . . . . . . . . . . . . . . . . 45 Part Disruptions 8 | . . . . 1 . . . . . . . . . . . . . . . . . . . . 1 2 3 1 Damage Taken 21307 | . 690 228 232 320 . . . 197 345 39 . 1121 386 143 88 56 . 299 754 1003 907 223 297 171 1324 1134 2159 9191 Core 1741 | . 89 . . 52 . . . 34 17 . . 122 . 16 . . . . 75 30 . . . . 37 37 119 1113 Absorbed by Shields 15866 | . . . . . . . . 10 68 12 . 99 91 53 33 . . 35 493 816 517 204 170 80 557 1010 2252 9366 Reduced by Siege Mode 1352 | . . . . . . . . . . . . 102 26 . . . . . 5 3 90 20 . . 74 29 93 910 Redirected to Shielding 242 | . . . . . . . . . . . . 110 . . . . . . . . . . . . . . . 132 Ignored by Resistances 2527 | . . . . . . . . . . . . . . 6 . . . . . . . . . . . . 1060 1461 Regen/Repaired (Parts) 2843 | . 67 . . . 433 . 132 74 . . 724 . . . . . . . . . . . . 194 221 . 32 966 Core Remaining (%) 84 | 100 . . . . 43 . . . . . . . 79 . . . . 98 . . . . 90 . 97 . . . Volleys Fired 1378 | 22 94 24 40 10 . 6 9 4 12 4 4 22 21 22 3 4 4 15 55 78 49 118 18 18 84 108 192 338 Largest 3 | 2 2 2 1 2 . 3 3 2 3 3 1 3 3 3 3 1 1 3 3 3 2 3 3 2 3 3 3 3 Hottest 320 | 70 130 130 100 66 . 146 237 162 252 237 90 242 252 252 242 90 7 242 276 291 210 315 315 210 315 190 225 320 Shots Fired 2552 | 41 180 42 40 21 . 16 27 8 29 12 4 38 53 54 9 4 4 32 72 118 55 141 36 28 143 203 423 719 Gun 1472 | 41 172 42 . . . . 27 8 26 12 1 25 44 43 9 . . 26 11 15 . 61 . . 23 136 324 426 Cannon 933 | . . . 8 21 . 16 . . 3 . 3 13 9 11 . 1 . 3 60 83 55 35 36 28 116 64 86 282 Launcher . | . . . . . . . . . . . . . . . . . . . . . . . . . . . . . Special 147 | . 8 . 32 . . . . . . . . . . . . 3 4 3 1 20 . 45 . . 4 3 13 11 Kinetic 693 | 22 84 . 8 21 . 10 . . . . . . . . . . . . . . . . . . 23 136 324 65 Thermal 1572 | 19 96 42 32 . . 6 27 8 29 12 4 25 53 54 9 1 . 29 37 68 12 141 36 28 92 46 94 572 Explosive . | . . . . . . . . . . . . . . . . . . . . . . . . . . . . . Electromagnetic 234 | . . . . . . . . . . . . 13 . . . . . . 34 30 43 . . . 24 18 1 71 Robot Hit Streak 75 | 8 9 6 1 5 . 4 21 3 4 6 . 7 11 11 8 7 8 16 16 22 12 15 10 8 23 26 36 75 Robot Miss Streak 7 | 5 5 4 1 2 . 1 2 1 3 2 . 4 4 5 2 . 1 2 4 3 3 4 3 2 2 2 3 7 Penetration Max 2 | . . . . . . . . . . . . . . . . . . . . . . . . . 1 1 1 2 Secondary Targets 22 | . 3 2 . . . . . . . . . . . . . . . 1 . . . . . . . 4 9 3 Max Gunslinging Chain 2 | . 1 1 . . . . . . . . . . . . . . . 1 . . . . . . . 1 2 1 Shots Hit Robots 1744 | 20 114 24 1 21 . 9 35 7 15 8 6 40 33 33 6 3 4 23 41 95 41 101 22 13 85 126 289 529 Core Hits 889 | 8 36 13 1 7 . 6 7 3 5 3 3 18 12 15 3 . 1 12 19 34 15 41 8 5 30 54 127 403 Critical Kills 45 | . . . . . . . . . . . . . . . . . . . 1 3 . 1 2 . 3 11 19 5 Critical Parts Destroyed 49 | . . . . . . . . . . . . . . . . . . . . . . . . . 2 16 27 4 Critical Strikes 135 | 2 6 1 . 1 . 1 . 1 3 3 1 5 3 3 1 . . 1 2 3 1 1 2 . 6 30 47 11 Burn 27 | 2 6 1 . . . . . 1 3 3 . 2 3 3 1 . . 1 1 . . . . . . . . . Meltdown 15 | . . . . . . . . . . . . . . . . . . . 1 3 . 1 2 . 1 1 1 5 Destroy 82 | . . . . . . . . . . . . . . . . . . . . . . . . . 4 28 46 4 Blast 2 | . . . . 1 . 1 . . . . . . . . . . . . . . . . . . . . . . Corrupt 5 | . . . . . . . . . . . . 1 . . . . . . . . 1 . . . . 1 . 2 Impale 4 | . . . . . . . . . . . 1 2 . . . . . . . . . . . . 1 . . . Melee Attacks 89 | . . . 34 7 . . 14 4 2 . 6 14 . . . . 1 . . 5 . . . . 2 . . . Impact 11 | . . . 11 . . . . . . . . . . . . . . . . . . . . . . . . . Slashing 50 | . . . 23 7 . . 14 4 2 . . . . . . . . . . . . . . . . . . . Piercing 28 | . . . . . . . . . . . 6 14 . . . . 1 . . 5 . . . . 2 . . . Sneak Attacks 27 | . . . . 3 . . 10 2 . . 6 6 . . . . . . . . . . . . . . . . Combat Hostiles . | . . . . . . . . . . . . . . . . . . . . . . . . . . . . . Follow-up Attacks . | . . . . . . . . . . . . . . . . . . . . . . . . . . . . . Damage Inflicted 57597 | 223 1299 388 20 864 . 232 1468 284 405 206 391 1506 945 1060 137 . 70 537 1807 2882 1485 2501 914 485 3780 4627 8315 20766 Guns 31294 | 223 1265 380 . . . . 468 139 405 206 . 454 833 841 137 . . 537 118 351 . 1247 . . 566 3575 7267 12282 Cannons 22110 | . . . 20 386 . 232 . . . . . 221 112 192 . . . . 1454 2400 1262 1043 860 467 3083 1004 927 8447 Explosions 352 | . . . . . . . . . . . . 69 . . . . . . 60 . 223 . . . . . . . Melee 3071 | . . . . 478 . . 1000 145 . . 391 762 . . . . 70 . . 129 . . . . 96 . . . Ramming 494 | . 34 8 . . . . . . . . . . . 27 . . . . 175 2 . . 54 18 35 48 56 37 Kinetic 14361 | 59 372 . 20 386 . 182 . . . . . . . . . . . . . . . . . . 566 3575 7267 1934 Thermal 32885 | 164 893 380 . . . 50 468 139 405 206 . 523 945 1033 137 . . 537 581 1776 482 2501 860 467 2211 291 992 16844 Explosive . | . . . . . . . . . . . . . . . . . . . . . . . . . . . . . Electromagnetic 6786 | . . . . . . . . . . . . 221 . . . . . . 1051 975 1003 . . . 872 713 . 1951 Impact . | . . . . . . . . . . . . . . . . . . . . . . . . . . . . . Slashing 1623 | . . . . 478 . . 1000 145 . . . . . . . . . . . . . . . . . . . . Piercing 1448 | . . . . . . . . . . . 391 762 . . . . 70 . . 129 . . . . 96 . . . Highest Corruption 23 | . . . . 7 . . . 1 1 1 1 . . 1 . 1 1 1 1 4 21 21 3 1 19 12 22 23 Average Corruption 7 | . . . . 6 . . . 1 1 1 1 . . 1 . 1 1 1 1 2 8 14 2 1 8 8 16 22 Corruption Purged 20 | . . . . . . . . . . . . . . 1 . . . . . . . 19 . . . . . . Corruption Blocked . | . . . . . . . . . . . . . . . . . . . . . . . . . . . . . Effects 601 | . . . . 33 . . . 3 11 13 1 . . 5 . 9 4 16 1 38 11 45 8 4 46 35 124 194 Message Errors 160 | . . . . 10 . . . . 6 5 . . . 2 . 2 2 4 . 6 5 15 2 1 13 7 30 50 Matter Fused 122 | . . . . 7 . . . 1 1 2 . . . 1 . 3 2 2 . 8 3 6 3 2 10 10 28 33 Heat Flow Errors 56 | . . . . 2 . . . 1 1 3 . . . 1 . 3 . 1 . 3 1 7 . . 2 2 9 20 Energy Discharges 56 | . . . . 7 . . . 1 2 1 . . . . . . . 3 . 7 . 4 . . 2 5 8 16 Parts Rejected 5 | . . . . . . . . . . . . . . . . . . . . 1 . . . . . . . 4 Parts Fused 8 | . . . . . . . . . . . . . . . . . . . . 1 . . . . . . 4 3 Data Loss (minor) 66 | . . . . 1 . . . . 1 2 . . . 1 . 1 . 5 1 9 2 3 1 1 7 3 12 16 Data Loss (major) 33 | . . . . 3 . . . . . . 1 . . . . . . . . 1 . 3 1 . 2 4 10 8 Misfires 26 | . . . . 2 . . . . . . . . . . . . . 1 . . . 3 1 . 5 1 5 8 Alerts 6 | . . . . . . . . . . . . . . . . . . . . . . . . . 1 . 2 3 Misdirections 7 | . . . . . . . . . . . . . . . . . . . . . . . . . . 1 2 4 Weapon Failures 56 | . . . . 1 . . . . . . . . . . . . . . . 2 . 4 . . 4 2 14 29 Overload Shots . | . . . . . . . . . . . . . . . . . . . . . . . . . . . . . Overflow Damage 827 | . . . . 75 . . 144 . . . . 100 . 13 . . . . 41 95 54 . 52 4 173 9 . 67 Projectiles 497 | . . . . 17 . . . . . . . . . 13 . . . . 33 95 54 . 41 4 173 . . 67 Explosions . | . . . . . . . . . . . . . . . . . . . . . . . . . . . . . Melee 330 | . . . . 58 . . 144 . . . . 100 . . . . . . 8 . . . 11 . . 9 . . Knockbacks 2 | . . . . . . . . . . . . . . . . . . . . . . . . . 1 1 . . Impact 2 | . . . . . . . . . . . . . . . . . . . . . . . . . 1 1 . . Kinetic . | . . . . . . . . . . . . . . . . . . . . . . . . . . . . . Secondary . | . . . . . . . . . . . . . . . . . . . . . . . . . . . . . Self-Inflicted Damage 234 | . . . . . . . . . . . . 20 . . . . . . . . . . . . 214 . . . Shots 3 | . . . . . . . . . . . . 1 . . . . . . . . . . . . 2 . . . Rammed 36 | . 10 4 . . . . . . . . . . . 2 . . . . 7 1 . . 1 1 3 2 3 2 Targets Rammed 41 | . 11 5 . . . . . . . . . . . 2 . . . . 8 2 . . 1 1 3 2 4 2 Kicked . | . . . . . . . . . . . . . . . . . . . . . . . . . . . . . Crushed 5 | . 1 1 . . . . . . . . . . . . . . . . 1 1 . . . . . . 1 . Highest Temperature 424 | 130 424 232 . 217 . 24 288 212 237 188 52 384 318 342 230 286 . 294 228 156 81 353 168 144 288 350 243 326 Average Temperature 74 | 61 55 90 . 113 . 11 95 49 95 82 29 163 92 123 111 102 . 113 63 57 47 89 55 62 61 54 40 81 Received Heat Transfer 2552 | . 261 72 21 18 . . . . 74 4 . 186 36 9 . . . 69 162 116 22 16 . . 157 88 154 1087 Effects 7 | . . . . . . . 3 . . . . 1 . . . . . 3 . . . . . . . . . . Energy Bleed 2 | . . . . . . . . . . . . 1 . . . . . 1 . . . . . . . . . . Interference 5 | . . . . . . . 3 . . . . . . . . . . 2 . . . . . . . . . . Siege Activations 43 | . . . . . . . . . . . . 4 1 . . . . 1 1 2 2 4 . . 6 1 7 14 Total Turns 1129 | . . . . . . . . . . . . 67 15 . . . . 17 14 36 78 55 . . 121 28 176 522 Longest Duration 138 | . . . . . . . . . . . . 26 15 . . . . 17 14 32 46 20 . . 36 28 67 138 Martial Activations . | . . . . . . . . . . . . . . . . . . . . . . . . . . . . . Shielding Activations . | . . . . . . . . . . . . . . . . . . . . . . . . . . . . . Robots Disrupted 2 | . . . . . . . . . . . . . . . . . . . . . . 1 . . . . . 1 Combat Hostiles 1 | . . . . . . . . . . . . . . . . . . . . . . . . . . . . 1 Robots Corrupted 44 | . . . . . . . . . . . . 2 . . . . . . 7 5 7 . 1 . 3 5 . 14 Combat Hostiles 39 | . . . . . . . . . . . . 2 . . . . . . 6 5 7 . . . 2 4 . 13 Parts Fried 74 | . . . . . . . . . . . . . 1 . . . . . 13 15 7 . 2 . 9 10 . 17 Impact Corruptions 4 | . . . . . . . . . . . . . . . . . . . 2 . . . 1 . . 1 . . Robots Melted 26 | . . . . . . . . . 1 . . . 2 1 . . . . 1 3 . 1 2 . 1 1 1 12 Combat Hostiles 25 | . . . . . . . . . 1 . . . 2 . . . . . 1 3 . 1 2 . 1 1 1 12 Parts Melted 119 | 1 5 2 . . . . . . 2 1 . 4 9 1 4 . . 2 4 12 . 6 5 2 3 2 . 54 Heat Transferred 43795 | 629 2923 962 . . . 100 777 296 879 528 . 964 1610 1611 335 . . 1067 457 2230 409 3426 851 481 1887 222 1068 20083 Parts Sabotaged 1 | . . . . . . . . . . . . . . . . . . . . . . . . . . . . 1 Parts Stolen . | . . . . . . . . . . . . . . . . . . . . . . . . . . . . . Parts Stripped . | . . . . . . . . . . . . . . . . . . . . . . . . . . . . . Power Chain Reactions 4 | . . . . . . . . . . . . 1 . . . . . . 1 . 2 . . . . . . . Alert | -11 -10 -10 -10 -8 -8 -6 -6 -6 -6 -6 -6 -6 -5 -5 -5 -5 -5 -4 -4 -4 -4 -4 -4 -3 -3 -2 -2 -2 ------- Run | Yrd Mat Min Sub Rec Scr Fac Was Fac Low Low Zio Dee Pro Fac Upp Upp Zhi Pro Fac Ext Cet Arc Hub Res Qua Res Tes Sec Maximum Alert Level 5 | . . . . . . . . . . . . . . 2 . . . . 3 3 2 . . . 1 3 4 5 Low Security (%) 57 | 100 100 100 . 100 . 100 100 100 . . . . . 61 . . . . 20 3 . 100 100 100 86 52 . . Level 1 8 | . . . . . . . . . . . . . . 21 . . . . 29 58 10 . . . 13 10 . . Level 2 16 | . . . . . . . . . . . . . . 17 . . . . 35 30 89 . . . . 33 25 37 Level 3 9 | . . . . . . . . . . . . . . . . . . . 14 8 . . . . . 3 48 24 Level 4 4 | . . . . . . . . . . . . . . . . . . . . . . . . . . . 25 16 Level 5 . | . . . . . . . . . . . . . . . . . . . . . . . . . . . . 2 High Security 2 | . . . . . . . . . . . . . . . . . . . . . . . . . . . . 18 Max Security . | . . . . . . . . . . . . . . . . . . . . . . . . . . . . . Peak Influence 2755 | 25 164 104 . 137 . 77 21 60 . . . . . 494 . . . . 757 770 480 184 150 141 251 758 1198 2755 Initial 663 | . . 34 . 64 . . 21 . . . . . . . . . . . 416 370 421 156 . 31 5 132 423 663 Average 350 | 5 71 13 . 38 . 17 . 14 . . . . . 194 . . . . 438 393 432 55 64 45 90 304 869 1098 Influence Increases 15638 | 30 589 245 284 389 . 112 . 156 354 572 . . 332 1074 143 238 9 830 1331 1209 236 202 287 396 704 1414 1430 3072 Destroy 0b10 Robot/C 8700 | . 260 200 180 140 . 80 . 40 200 320 . . 220 460 80 160 . 500 540 720 160 80 160 160 300 720 860 2160 Destroy 0b10 Robot/NC 530 | 30 35 5 . 25 . . . 10 5 . . . 10 70 . . 5 10 45 35 10 40 15 5 25 65 50 35 Destroy Leader 1310 | . 50 40 10 . . 10 . 22 30 20 . . 30 92 30 10 . 40 94 86 . . 34 32 56 166 112 346 Allied During Kill 1589 | . . . 49 12 . 7 . 72 119 187 . . 57 211 33 68 4 250 102 245 17 . . 34 . 122 . . Successful Hack 608 | . 71 . . 30 . . . 11 . . . . . 62 . . . . . 5 7 . 28 108 59 65 114 48 Select Force Hacks 240 | . 60 . . 180 . . . . . . . . . . . . . . . . . . . . . . . . Disable Machine 735 | . . . . . . 15 . . . . . . . 75 . . . . 90 45 . 60 30 . 120 . 135 165 Destroy Structure 966 | . 8 . . 2 . . . 1 . . . . . 104 . . . . 130 28 42 22 20 42 114 246 99 108 Advance Influence 300 | . . . . . . . . . . . . . . . . . . . 300 . . . . . . . . . Partial Spotted 30 | . . . . . . . . . . . . . . . . . . . . . . . . 15 . . . 15 Lose Combat Pursuer 630 | . 105 . 45 . . . . . . 45 . . 15 . . . . 30 30 45 . . . . 30 30 60 195 Influence Decreases 12963 | 30 499 335 150 523 . 50 62 156 354 324 248 . 332 608 609 118 129 645 759 1212 599 593 227 446 479 895 1003 1578 Entered New Map 2718 | . . 56 . 70 . . 41 . . . 248 . . . 173 . 120 . 69 387 333 235 . 29 5 103 331 518 Time Decay 8167 | 30 439 279 90 353 . 30 21 151 314 264 . . 252 468 436 91 9 485 410 565 206 358 218 340 474 542 652 690 Search Patrol Dispatched 100 | . . . . . . . . . . . . . . . . . . . 100 . . . . . . . . . Lost Part 360 | . 50 . . 20 . . . . . . . . . . . . . . . 20 20 . . 10 . . 20 220 Lost Ally 1318 | . 10 . 60 80 . 20 . 5 40 60 . . 80 140 . 27 . 160 180 240 40 . 9 67 . 100 . . Purge Threat 300 | . . . . . . . . . . . . . . . . . . . . . . . . . . 150 . 150 Squads Dispatched 97 | . 2 . . . . . . 2 . . . . . 4 . 1 . 1 8 3 . . 1 7 4 10 11 43 Investigation 10 | . 2 . . . . . . . . . . . . 1 . . . . 1 . . . . 4 . . . 2 Extermination 24 | . . . . . . . . 1 . . . . . 2 . . . . 2 . . . 1 . 3 5 5 5 Reinforcement 22 | . . . . . . . . 1 . . . . . 1 . . . . 5 2 . . . 3 1 3 3 3 Assault 37 | . . . . . . . . . . . . . . . . 1 . 1 . 1 . . . . . 2 3 29 Garrison 3 | . . . . . . . . . . . . . . . . . . . . . . . . . . . . 3 Intercept 1 | . . . . . . . . . . . . . . . . . . . . . . . . . . . . 1 Searches Triggered 1 | . . . . . . . . . . . . . . . . . . . 1 . . . . . . . . . Construction Impeded 4 | . . . . . . . . . . . . . . . . . . . 2 1 . . . . . 1 . . Haulers Reinforced 4 | . . . . . . . . . . . . . . . . . . . . . . . . 1 . 1 1 1 Active Scanning Responses . | . . . . . . . . . . . . . . . . . . . . . . . . . . . . . Cargo Convoy Interrupts . | . . . . . . . . . . . . . . . . . . . . . . . . . . . . . Stealth | -11 -10 -10 -10 -8 -8 -6 -6 -6 -6 -6 -6 -6 -5 -5 -5 -5 -5 -4 -4 -4 -4 -4 -4 -3 -3 -2 -2 -2 --------- Run | Yrd Mat Min Sub Rec Scr Fac Was Fac Low Low Zio Dee Pro Fac Upp Upp Zhi Pro Fac Ext Cet Arc Hub Res Qua Res Tes Sec Distress Signals 34 | . 4 . . . . . . . . . . . . 1 . . . 1 . 2 2 . 2 9 2 4 3 4 Communications Jammed 191 | . . . . . . . . . . . . . 1 . . . . . . 2 . . . . 38 19 11 120 Distress Signals 189 | . . . . . . . . . . . . . . . . . . . . 2 . . . . 38 18 11 120 Times Spotted 732 | . 31 8 21 8 . 4 2 3 8 13 . 15 11 22 3 7 . 11 30 43 11 75 11 16 28 46 59 246 Peak Tracking Total 30 | . 4 3 4 5 . 2 1 1 6 7 . 5 4 4 1 7 . 6 6 6 5 1 6 3 7 7 6 30 Tactical Retreats 32 | . 5 . 3 . . . . . . 1 . . 1 . . . . 2 2 3 . . . . 1 2 4 8 Traps | -11 -10 -10 -10 -8 -8 -6 -6 -6 -6 -6 -6 -6 -5 -5 -5 -5 -5 -4 -4 -4 -4 -4 -4 -3 -3 -2 -2 -2 ------- Run | Yrd Mat Min Sub Rec Scr Fac Was Fac Low Low Zio Dee Pro Fac Upp Upp Zhi Pro Fac Ext Cet Arc Hub Res Qua Res Tes Sec Traps Triggered 12 | . . . 2 . . 1 . 1 . . . . . 3 . . . . . . . . . 1 1 1 1 1 Indirectly . | . . . . . . . . . . . . . . . . . . . . . . . . . . . . . Trap Hack Attempts . | . . . . . . . . . . . . . . . . . . . . . . . . . . . . . Triggered . | . . . . . . . . . . . . . . . . . . . . . . . . . . . . . Disarmed . | . . . . . . . . . . . . . . . . . . . . . . . . . . . . . Reprogrammed . | . . . . . . . . . . . . . . . . . . . . . . . . . . . . . Reused . | . . . . . . . . . . . . . . . . . . . . . . . . . . . . . Traps Extracted . | . . . . . . . . . . . . . . . . . . . . . . . . . . . . . Installed . | . . . . . . . . . . . . . . . . . . . . . . . . . . . . . Triggered . | . . . . . . . . . . . . . . . . . . . . . . . . . . . . . Most Traps Carried 4 | . . 3 4 . . . . . . . . . . . . . . . . . . . . . . . . . Machines | -11 -10 -10 -10 -8 -8 -6 -6 -6 -6 -6 -6 -6 -5 -5 -5 -5 -5 -4 -4 -4 -4 -4 -4 -3 -3 -2 -2 -2 ---------- Run | Yrd Mat Min Sub Rec Scr Fac Was Fac Low Low Zio Dee Pro Fac Upp Upp Zhi Pro Fac Ext Cet Arc Hub Res Qua Res Tes Sec Machines Disabled 57 | . . . 2 . . 1 . . . 1 3 . . 5 . 1 . . 6 3 . 4 2 . 8 . 9 12 Max in Single Turn 2 | . . . 1 . . 1 . . . . 1 . . . . . . . 1 1 . 1 1 . 2 . 1 1 Garrison Access 4 | . . . . . . . . . . . . . . 1 . . . . 1 . . . . . 1 . 1 . Network Hub 1 | . . . . . . . . . . . . . . . . . . . . . . . 1 . . . . . Energy Cycler 2 | . . . . . . . . . . . . . . . . . . . . 2 . . . . . . . . Machines Repaired . | . . . . . . . . . . . . . . . . . . . . . . . . . . . . . Machines Dismantled 4 | . . . . . . . . . . . . . . . . . . . 1 1 . . 1 . . . 1 . Machines Sabotaged . | . . . . . . . . . . . . . . . . . . . . . . . . . . . . . Overloaded Fab Kills . | . . . . . . . . . . . . . . . . . . . . . . . . . . . . . Hacking | -11 -10 -10 -10 -8 -8 -6 -6 -6 -6 -6 -6 -6 -5 -5 -5 -5 -5 -4 -4 -4 -4 -4 -4 -3 -3 -2 -2 -2 --------- Run | Yrd Mat Min Sub Rec Scr Fac Was Fac Low Low Zio Dee Pro Fac Upp Upp Zhi Pro Fac Ext Cet Arc Hub Res Qua Res Tes Sec Machines Accessed 99 | . 11 . 2 12 3 . . 2 1 2 . . 1 9 . 1 4 . 1 5 1 . 1 6 8 8 9 12 Terminals 50 | . 8 . . 6 . . . 1 . 1 . . 1 4 . . . . . 5 1 . 1 3 4 4 4 7 Fabricators 3 | . . . . . . . . . . . . . . 2 . . . . . . . . . . . 1 . . Repair Stations 8 | . 1 . . . . . . . . . . . . 1 . . . . . . . . . 1 1 1 2 1 Recycling Units 9 | . 2 . . 6 . . . . . . . . . . . . . . . . . . . . . 1 . . Scanalyzers 12 | . . . . . . . . 1 . . . . . 1 . . . . . . . . . 2 2 1 2 3 Garrison Access 5 | . . . . . . . . . . . . . . 1 . . . . 1 . . . . . 1 . 1 1 Total Hacks 307 | . 35 . 5 25 24 . . 7 1 6 . . 5 21 . 1 17 . 5 10 1 . 4 33 22 22 30 33 Successful 180 | . 23 . 5 15 24 . . 2 1 6 . . 5 14 . 1 17 . 2 6 1 . 2 16 11 6 9 14 Failed 125 | . 11 . . 10 . . . 5 . . . . . 7 . . . . 3 4 . . 2 16 11 16 21 19 Catastrophic 23 | . 1 . . 2 . . . . . . . . . 1 . . . . 1 . . . . 3 1 3 4 7 Database Lockouts 2 | . 1 . . . . . . . . . . . . . . . . . . . . . . 1 . . . . Manual 91 | . 23 . . 22 . . . 2 . . 1 . . 5 . . . . . 4 . . . 3 8 7 12 4 Terminals 151 | . 27 . . 18 . . . 4 . 5 . . 5 10 . . . . 2 10 1 . 4 12 9 12 16 16 Fabricators 8 | . . . . . . . . . . . . . . 6 . . . . . . . . . . . 2 . . Repair Stations 30 | . 4 . . . . . . . . . . . . 2 . . . . . . . . . 7 3 2 4 8 Recycling Units 15 | . 4 . . 7 . . . . . . . . . . . . . . . . . . . . . 4 . . Scanalyzers 42 | . . . . . . . . 3 . . . . . 2 . . . . . . . . . 14 7 2 8 6 Garrison Access 12 | . . . . . . . . . . . . . . 1 . . . . 3 . . . . . 3 . 2 3 Terminal Hacks 98 | . 7 . 5 3 24 . . 2 1 6 . . 5 7 . 1 17 . 1 4 1 . 2 1 . 2 2 7 Record 43 | . . . 4 . 24 . . . . 5 . . 5 . . . 5 . . . . . . . . . . . Part Schematic 9 | . 1 . . 2 . . . 1 . . . . . . . . 4 . . . . . . . . . 1 . Robot Schematic 1 | . 1 . . . . . . . . . . . . . . . . . . . . . . . . . . . Robot Analysis 6 | . 1 . . 1 . . . . . . . . . . . . 4 . . . . . . . . . . . Prototype ID Bank 5 | . . . . . . . . . . . . . . 1 . . 4 . . . . . . . . . . . Open Door 10 | . . . . . . . . . 1 1 . . . . . 1 . . . 1 1 . . . . . . 5 Level Access Points 1 | . . . . . . . . . . . . . . . . . . . . . . . . . . . . 1 Branch Access Points 3 | . . . . . . . . . . . . . . 1 . . . . . . . . . 1 . 1 . . Terminal Index 2 | . 1 . . . . . . . . . . . . 1 . . . . . . . . . . . . . . Garrison Index 1 | . . . . . . . . . . . . . . . . . . . . . . . 1 . . . . . Unreport Threat 1 | . . . . . . . . . . . . . . . . . . . . . . . . . . . . 1 Locate Traps 8 | . 2 . . . . . . 1 . . . . . 1 . . . . 1 2 . . . . . . 1 . Registered Components 2 | . . . . . . . . . . . . . . 1 . . . . . . . . . . . 1 . . Registered Prototypes 1 | . . . . . . . . . . . . . . 1 . . . . . . . . . . . . . . Zone Layout 4 | . 1 . . . . . . . . . . . . 1 . . . . . 1 . . 1 . . . . . Proto ID Catalog 1 | . . . 1 . . . . . . . . . . . . . . . . . . . . . . . . . Fabricator Hacks 2 | . . . . . . . . . . . . . . 2 . . . . . . . . . . . . . . Network Status 1 | . . . . . . . . . . . . . . 1 . . . . . . . . . . . . . . Build 1 | . . . . . . . . . . . . . . 1 . . . . . . . . . . . . . . Repair Station Hacks 15 | . 4 . . . . . . . . . . . . . . . . . . . . . . 5 2 . 1 3 Scan Component 9 | . 2 . . . . . . . . . . . . . . . . . . . . . . 3 1 . 1 2 Repair 6 | . 2 . . . . . . . . . . . . . . . . . . . . . . 2 1 . . 1 Recycling Unit Hacks . | . . . . . . . . . . . . . . . . . . . . . . . . . . . . . Scanalyzer 24 | . . . . . . . . . . . . . . 2 . . . . . . . . . 9 6 2 2 3 Insert Component 13 | . . . . . . . . . . . . . . 1 . . . . . . . . . 4 2 1 2 3 Analyze 5 | . . . . . . . . . . . . . . . . . . . . . . . . 2 3 . . . Retrieve Study 6 | . . . . . . . . . . . . . . 1 . . . . . . . . . 3 1 1 . . Garrison Access Hacks 4 | . . . . . . . . . . . . . . 1 . . . . 1 . . . . . 1 . 1 . Seal Access 4 | . . . . . . . . . . . . . . 1 . . . . 1 . . . . . 1 . 1 . Unauthorized Hacks 37 | . 12 . . 12 . . . . . . . . . 2 . . . . . 2 . . . 1 2 2 3 1 Terminals 25 | . 10 . . 6 . . . . . . . . . . . . . . . 2 . . . 1 2 1 2 1 Assimilate 3 | . 3 . . . . . . . . . . . . . . . . . . . . . . . . . . . Botnet 5 | . 1 . . 1 . . . . . . . . . . . . . . . . . . . 1 . 1 . 1 Operators 1 | . 1 . . . . . . . . . . . . . . . . . . . . . . . . . . . Skim 16 | . 5 . . 5 . . . . . . . . . . . . . . . 2 . . . . 2 . 2 . Fabricators 1 | . . . . . . . . . . . . . . 1 . . . . . . . . . . . . . . Haulers 1 | . . . . . . . . . . . . . . 1 . . . . . . . . . . . . . . Repair Stations 1 | . . . . . . . . . . . . . . 1 . . . . . . . . . . . . . . Mechanics 1 | . . . . . . . . . . . . . . 1 . . . . . . . . . . . . . . Recycling Units 9 | . 2 . . 6 . . . . . . . . . . . . . . . . . . . . . 1 . . Recyclers 1 | . . . . . . . . . . . . . . . . . . . . . . . . . . 1 . . Tunnel 8 | . 2 . . 6 . . . . . . . . . . . . . . . . . . . . . . . . Scanalyzers 1 | . . . . . . . . . . . . . . . . . . . . . . . . . . . 1 . Researchers 1 | . . . . . . . . . . . . . . . . . . . . . . . . . . . 1 . Garrison Access . | . . . . . . . . . . . . . . . . . . . . . . . . . . . . . Data Cores Recovered 2 | . . . . . . . . . . . . . . 1 . . . . . . . . . . 1 . . . Used 1 | . . . . . . . . . . . . . . 1 . . . . . . . . . . . . . . Hacking Detections 67 | . 9 . . 5 . . . 2 . 1 . . . 8 . . . . 1 4 . . 1 7 7 6 9 7 Full Trace Events 5 | . . . . . . . . . . . . . . 1 . . . . . . . . . 2 . . . 2 Feedback Events . | . . . . . . . . . . . . . . . . . . . . . . . . . . . . . Feedback Blocked . | . . . . . . . . . . . . . . . . . . . . . . . . . . . . . Robot Schematics Acquired 6 | . 1 . . . . . . . . . 4 . . . . . . . . . . . . . 1 . . . Robots Built . | . . . . . . . . . . . . . . . . . . . . . . . . . . . . . Authchips . | . . . . . . . . . . . . . . . . . . . . . . . . . . . . . Time . | . . . . . . . . . . . . . . . . . . . . . . . . . . . . . Total Robot Build Rating . | . . . . . . . . . . . . . . . . . . . . . . . . . . . . . Part Schematics Acquired 35 | . 1 . . 2 . . . 1 . . 15 . . . . . 4 . . . . . . 2 6 . 4 . Parts Built 2 | . . . . . . . . . . . . . . 2 . . . . . . . . . . . . . . Authchips . | . . . . . . . . . . . . . . . . . . . . . . . . . . . . . Time 58 | . . . . . . . . . . . . . . 58 . . . . . . . . . . . . . . Total Part Build Rating 14 | . . . . . . . . . . . . . . 14 . . . . . . . . . . . . . . Part Studies Acquired 6 | . . . . . . . . . . . . . . 1 . . . . . . . . . 3 1 1 . . Parts Repaired 6 | . 2 . . . . . . . . . . . . . . . . . . . . . . 2 1 . . 1 Time 258 | . 52 . . . . . . . . . . . . . . . . . . . . . . 124 20 . . 62 Parts Recycled . | . . . . . . . . . . . . . . . . . . . . . . . . . . . . . Recycled Matter . | . . . . . . . . . . . . . . . . . . . . . . . . . . . . . Retrieved Matter . | . . . . . . . . . . . . . . . . . . . . . . . . . . . . . Retrieved Components . | . . . . . . . . . . . . . . . . . . . . . . . . . . . . . Parts Scanalyzed 4 | . . . . . . . . . . . . . . . . . . . . . . . . 2 2 . . . Part Schematics Acquired 3 | . . . . . . . . . . . . . . . . . . . . . . . . 2 1 . . . Parts Damaged 1 | . . . . . . . . . . . . . . . . . . . . . . . . 1 . . . . Bothacking | -11 -10 -10 -10 -8 -8 -6 -6 -6 -6 -6 -6 -6 -5 -5 -5 -5 -5 -4 -4 -4 -4 -4 -4 -3 -3 -2 -2 -2 ------------ Run | Yrd Mat Min Sub Rec Scr Fac Was Fac Low Low Zio Dee Pro Fac Upp Upp Zhi Pro Fac Ext Cet Arc Hub Res Qua Res Tes Sec Used RIF Installer . | . . . . . . . . . . . . . . . . . . . . . . . . . . . . . Robots Hacked 18 | . . . . . . . . . . . . . . . . . 3 . 1 1 . . . . 2 . 3 8 Non-combat 1 | . . . . . . . . . . . . . . . . . . . 1 . . . . . . . . . Combat 4 | . . . . . . . . . . . . . . . . . 3 . . 1 . . . . . . . . Robot Hacks Applied 5 | . . . . . . . . . . . . . . . . . 3 . 1 1 . . . . . . . . parse_system 4 | . . . . . . . . . . . . . . . . . 3 . . 1 . . . . . . . . find_chute 1 | . . . . . . . . . . . . . . . . . . . 1 . . . . . . . . . Manual 13 | . . . . . . . . . . . . . . . . . . . . . . . . . 2 . 3 8 Relay Couplers Released . | . . . . . . . . . . . . . . . . . . . . . . . . . . . . . Fabnet Peak Effective % . | . . . . . . . . . . . . . . . . . . . . . . . . . . . . . Robots Rewired 24 | . . . . 9 . . . . . . . . . . . 2 . 2 . 10 . 1 . . . . . . Allies Hacked . | . . . . . . . . . . . . . . . . . . . . . . . . . . . . . Hacks Repelled . | . . . . . . . . . . . . . . . . . . . . . . . . . . . . . Allies | -11 -10 -10 -10 -8 -8 -6 -6 -6 -6 -6 -6 -6 -5 -5 -5 -5 -5 -4 -4 -4 -4 -4 -4 -3 -3 -2 -2 -2 -------- Run | Yrd Mat Min Sub Rec Scr Fac Was Fac Low Low Zio Dee Pro Fac Upp Upp Zhi Pro Fac Ext Cet Arc Hub Res Qua Res Tes Sec Total Allies 134 | . 1 . 13 9 . . 20 . . 7 7 . 6 10 5 7 . 8 10 17 . 1 . 7 . 6 . . Largest Group 26 | . 1 . 8 9 9 9 26 26 18 8 13 12 4 4 4 7 7 7 6 6 3 1 1 5 . 4 . . Highest-Rated Group 837 | . 10 . 150 125 125 125 837 837 602 452 591 495 324 324 324 448 448 448 394 316 102 45 45 376 . 324 . . Highest-Rated Ally 159 | . 10 . 19 27 27 27 50 50 47 81 96 96 81 81 81 81 81 81 81 159 46 45 45 81 . 81 . . Total Orders 32 | . 6 . . . . 8 1 9 8 . . . . . . . . . . . . . . . . . . . STAY 5 | . 5 . . . . . . . . . . . . . . . . . . . . . . . . . . . FOLLOW 2 | . 1 . . . . . . . 1 . . . . . . . . . . . . . . . . . . . TUNNEL 1 | . . . . . . . . . 1 . . . . . . . . . . . . . . . . . . . EXPLORE 13 | . . . . . . 4 . 5 4 . . . . . . . . . . . . . . . . . . . RETURN 11 | . . . . . . 4 1 4 2 . . . . . . . . . . . . . . . . . . . Ally Attacks 970 | . . . 63 25 . 8 40 36 55 47 . 74 42 93 18 51 . 76 63 121 21 . . 41 . 96 . . Total Damage 29020 | . . . 1138 453 . 97 637 512 1184 1805 . 1372 930 3418 434 1437 . 2631 4409 3059 517 . . 1981 . 3006 . . Kills 205 | . . . 14 4 . 1 1 3 9 16 . 11 7 32 3 10 . 24 23 19 2 . . 8 . 18 . . Allies Corrupted 3 | . . . . . . . . . 2 . . . . . . . . 1 . . . . . . . . . . Allies Melted . | . . . . . . . . . . . . . . . . . . . . . . . . . . . . . Intel | -11 -10 -10 -10 -8 -8 -6 -6 -6 -6 -6 -6 -6 -5 -5 -5 -5 -5 -4 -4 -4 -4 -4 -4 -3 -3 -2 -2 -2 ------- Run | Yrd Mat Min Sub Rec Scr Fac Was Fac Low Low Zio Dee Pro Fac Upp Upp Zhi Pro Fac Ext Cet Arc Hub Res Qua Res Tes Sec Active Infowar (turns) 28715 | 43 1699 409 444 . . 232 1592 483 1411 1551 2260 412 2161 594 1651 1736 294 1927 659 908 . . 409 853 1019 1322 1355 3291 Sensors 8212 | . . . . . . . . . 1085 63 . . 763 127 1648 1736 272 1921 1 6 . . 400 88 . . 102 . Terrain 3459 | . . . . . . . . . . . . . . . . . . . 523 69 . . . 525 482 662 588 610 Seismic 24087 | 43 1699 409 444 . . 232 1592 483 1406 1549 2258 410 1802 590 1651 1712 270 1914 573 89 . . 394 282 489 1010 580 2206 Jamming 6769 | . . . . . . . . . . . . 2 359 68 1 . 22 10 545 750 . . 10 301 751 317 745 2888 ECM 12 | . . . . . . . 10 . . . 2 . . . . . . . . . . . . . . . . . Robot Analysis Total 6 | . 1 . . 1 . . . . . . . . . . . . 4 . . . . . . . . . . . Derelict Logs Recovered 21 | . . 2 2 . 5 . . . 2 1 2 . 2 . 2 2 . 1 . . . . . . . . . . Drone Launches 16 | . . . . . . 5 . 7 4 . . . . . . . . . . . . . . . . . . . Drone Recoveries 12 | . . . . . . 4 1 5 2 . . . . . . . . . . . . . . . . . . . Exploration | -11 -10 -10 -10 -8 -8 -6 -6 -6 -6 -6 -6 -6 -5 -5 -5 -5 -5 -4 -4 -4 -4 -4 -4 -3 -3 -2 -2 -2 ------------- Run | Yrd Mat Min Sub Rec Scr Fac Was Fac Low Low Zio Dee Pro Fac Upp Upp Zhi Pro Fac Ext Cet Arc Hub Res Qua Res Tes Sec Turns Passed 51329 | 131 2619 1753 5162 1217 4634 234 1592 486 1868 1673 2376 3275 2383 1593 1668 1736 294 2057 998 1690 428 1125 635 860 1453 1547 2408 3434 Spaces Moved 26655 | 37 934 689 2638 851 3610 118 725 244 1040 957 1346 1613 1322 843 991 1026 148 1182 446 819 161 460 298 449 644 719 1027 1318 Core 273 | . . . . . 273 . . . . . . . . . . . . . . . . . . . . . . . Treads 20003 | 37 934 689 489 . . 76 725 244 1040 957 1346 1613 1322 843 991 1026 148 1182 446 819 161 460 298 449 644 719 1027 1318 Legs . | . . . . . . . . . . . . . . . . . . . . . . . . . . . . . Wheels 6379 | . . . 2149 851 3337 42 . . . . . . . . . . . . . . . . . . . . . . Hover . | . . . . . . . . . . . . . . . . . . . . . . . . . . . . . Flight . | . . . . . . . . . . . . . . . . . . . . . . . . . . . . . Fastest Speed 50 | 160 160 240 130 130 50 145 160 170 170 170 170 170 170 166 166 166 166 166 165 165 160 160 160 160 160 160 145 160 Average Speed 165 | 160 229 240 172 130 125 156 192 170 170 170 170 180 170 166 166 166 166 166 165 165 169 160 160 160 160 160 156 160 Slowest Speed 320 | 160 240 240 320 130 145 240 249 270 255 170 270 255 170 166 166 166 166 166 165 166 240 160 160 160 160 240 240 160 Overloaded Moves . | . . . . . . . . . . . . . . . . . . . . . . . . . . . . . Propulsion Burnouts . | . . . . . . . . . . . . . . . . . . . . . . . . . . . . . Robots Hopped . | . . . . . . . . . . . . . . . . . . . . . . . . . . . . . Potential Cave-ins 2 | . . . . . . . . . . . . . . . . . . . . . . . . . . . 2 . Cave-ins Triggered . | . . . . . . . . . . . . . . . . . . . . . . . . . . . . . Teleports 8 | . . . . . . . . . . . . . . . . . . . . . . . . . . . . 8 Exploration Rate (%) 68 | 4 98 102 97 98 96 3 96 13 99 94 86 76 98 21 99 98 60 99 13 87 71 96 19 13 82 27 76 60 Regions Visited 28 Branch Regions 20 Pre-discovered Areas 24 | . 2 2 1 8 2 . . . 1 . 3 . 1 . 1 . 3 . . . . . . . . . . . Known Exits Taken 16 | . 1 1 1 1 . . . 1 . 1 1 . 1 1 1 1 . 1 1 . . . . 1 1 1 . . Unknown Exits Taken 10 | 1 . . . . 1 . . . 1 . . 1 . . . . 1 . . 1 1 1 1 . . . 1 . Scrap Searched 39 | . . 2 13 . 4 . . . 3 4 4 . 1 . 3 3 . 2 . . . . . . . . . . Spaces Dug 153 | . 6 . 18 . . . . 1 3 . . . 4 4 . 1 . 1 8 . . 2 2 8 20 25 24 26 Terrain Destroyed 352 | . 8 . 18 2 . . . 1 5 . . 11 6 6 . 1 . 3 21 8 27 11 9 14 75 43 44 39 Melee 21 | . . . 18 . . . . 1 2 . . . . . . . . . . . . . . . . . . . Projectile 245 | . 8 . . 2 . . . . 3 . . . 6 6 . 1 . 3 12 8 4 11 9 14 32 43 44 39 AOE 86 | . . . . . . . . . . . . 11 . . . . . . 9 . 23 . . . 43 . . . Terrain Rammed . | . . . . . . . . . . . . . . . . . . . . . . . . . . . . . Walls Destroyed . | . . . . . . . . . . . . . . . . . . . . . . . . . . . . . Machines Disabled . | . . . . . . . . . . . . . . . . . . . . . . . . . . . . . Actions | -11 -10 -10 -10 -8 -8 -6 -6 -6 -6 -6 -6 -6 -5 -5 -5 -5 -5 -4 -4 -4 -4 -4 -4 -3 -3 -2 -2 -2 --------- Run | Yrd Mat Min Sub Rec Scr Fac Was Fac Low Low Zio Dee Pro Fac Upp Upp Zhi Pro Fac Ext Cet Arc Hub Res Qua Res Tes Sec Total 31609 | 72 1211 737 3112 933 3696 155 896 309 1108 992 1413 1948 1408 989 1007 1055 191 1246 626 1031 262 711 412 554 924 954 1545 2112 Wait 2046 | 2 119 14 332 30 19 9 94 32 31 13 23 97 52 83 9 21 16 35 74 77 30 111 79 51 121 57 122 293 Move 26628 | 36 933 688 2637 850 3609 118 724 243 1039 956 1345 1612 1321 842 990 1025 147 1181 445 818 160 459 297 448 643 718 1026 1318 Hop . | . . . . . . . . . . . . . . . . . . . . . . . . . . . . . Pick Up 255 | 4 19 . 28 . 32 8 8 6 1 4 4 60 1 8 1 . 2 1 10 6 7 . . 6 9 5 16 9 Fast Attach 125 | 1 4 . . . 7 2 8 4 1 1 7 10 . 5 . . 4 . 1 3 3 6 . 5 5 1 33 14 Attach 80 | . 4 . 3 2 3 5 . . 1 . 1 18 . 2 . . 3 . 2 1 2 . . 2 2 2 8 19 Detach 44 | . . . . . 3 . . . 2 . 2 20 . 1 . . 2 . . . . . . 2 . . 8 4 Swap 537 | 4 21 6 15 4 11 4 13 4 16 9 10 24 12 13 3 5 7 13 12 24 3 10 14 15 41 57 74 93 Drop 300 | 3 6 . 23 . 12 3 23 11 3 5 11 70 1 10 1 . 5 1 10 9 8 4 . 4 13 4 52 8 Fire 1378 | 22 94 24 40 10 . 6 9 4 12 4 4 22 21 22 3 4 4 15 55 78 49 118 18 18 84 108 192 338 Melee 89 | . . . 34 7 . . 14 4 2 . 6 14 . . . . 1 . . 5 . . . . 2 . . . Ram . | . . . . . . . . . . . . . . . . . . . . . . . . . . . . . Kick . | . . . . . . . . . . . . . . . . . . . . . . . . . . . . . Crush 41 | . 11 5 . . . . . . . . . . . 2 . . . . 8 2 . . 1 1 3 2 4 2 Escape Stasis 15 | . . . . . . . . . . . . . . 1 . . . . . . . . . . . . . 14 Rewire 37 | . . . . 30 . . 3 . . . . 1 . . . . . . . . . 3 . . . . . . Trap . | . . . . . . . . . . . . . . . . . . . . . . . . . . . . . Miscellaneous 34 | . . . . . . . . 1 . . . . . . . . . . 9 8 . . 3 2 1 . 10 . Route ------- -11/Scrapyard -10/Materials (discovered 6 exits: *Mat x3 / *Min x2 / Sub) -10/Mines (discovered 3 exits: *Mat x2 / *Sub) -10/Subcaves (discovered 3 exits: *Mat x2 / *Rec) -8/Recycling (discovered 2 exits: [*Fac] / *Scr) -8/Scraptown (discovered 2 exits: [*Fac x2]) -6/Factory (discovered 3 exits: Fac x2 / Low) -6/Waste -6/Factory -6/Lower Caves -6/Lower Caves (discovered 2 exits: *Fac / *Zio) -6/Zion (discovered 2 exits: *Dee / [*Pro]) -6/Deep Caves -5/Proximity Caves -5/Factory (discovered 3 exits: *Fac / *Upp x2) -5/Upper Caves -5/Upper Caves (discovered 2 exits: *Fac / *Zhi) -5/Zhirov -4/Proximity Caves -4/Factory -4/Extension (discovered 3 exits: *Res x2 / *Cet) -4/Cetus (discovered 2 exits: *Res / [*Arc]) -4/Archives (discovered 3 exits: *Res / *Hub x2) -4/Hub_04(d) -3/Research (discovered 4 exits: Res / Arm / *Qua x2) -3/Quarantine -2/Research (discovered 3 exits: *Acc / *Tes x2) -2/Testing (discovered 3 exits: Acc / *Sec / [*Frg]) -2/Section 7 (discovered 1 exit: *Acc) History --------- Turn | Location | Event 28 | -11/Scrapyard | Discovered new exit (range 3) 132 | -11/Scrapyard | Entered Materials 313 | -10/Materials | Build established: Mutant 413 | -10/Materials | Discovered new exit (range 10) 685 | -10/Materials | Discovered new exit (range 7) 878 | -10/Materials | Learned location of 2 exits from Mines 911 | -10/Materials | Identified exit to Materials 936 | -10/Materials | Identified exit to Mines 936 | -10/Materials | Identified exit to Subcaves 954 | -10/Materials | Learned 2 Mines zone layouts 955 | -10/Materials | Learned 2 Storage zone layouts 957 | -10/Materials | Loaded intel: 8 terminal locations 965 | -10/Materials | Learned Storage stockpile data 981 | -10/Materials | Learned 2 Storage zone layouts 1116 | -10/Materials | Discovered exit to Mines (range 9) 1121 | -10/Materials | Central database locked down 2297 | -10/Materials | Lost 3 parts (1p1n1w) 2524 | -10/Materials | Repaired Lgt. Treads 2551 | -10/Materials | Repaired Lgt. Treads 2751 | -10/Materials | Entered Mines 2917 | -10/Mines | Learned location of Zion (-6) 3526 | -10/Mines | Found a Scrap Suit stashed away for nefarious purposes 3706 | -10/Mines | Found a hidden stash of uninstalled traps 4504 | -10/Mines | Entered Subcaves 4505 | -10/Subcaves | Identified exit to Materials 4944 | -10/Subcaves | Learned location of 1 exit from Materials 4973 | -10/Subcaves | Visited triangular shrine 4988 | -10/Subcaves | Found Prototype Device 4989 | -10/Subcaves | Identified V3-11A's Pendant 4994 | -10/Subcaves | Befriended Subdweller 5269 | -10/Subcaves | Befriended Subdweller 5290 | -10/Subcaves | Shifting Twisted Machinery released Riot Gun 5292 | -10/Subcaves | Shifting Twisted Machinery released Shrapnel Trap 5585 | -10/Subcaves | Shifting Twisted Machinery released Mak. Hacking Suite 5597 | -10/Subcaves | Shifting Twisted Machinery released Flamer 5654 | -10/Subcaves | Befriended Subdweller 5894 | -10/Subcaves | A Subdweller sparked back to life 5894 | -10/Subcaves | A Subdweller sparked back to life 5894 | -10/Subcaves | A Subdweller sparked back to life 5899 | -10/Subcaves | Befriended Subdweller 5899 | -10/Subcaves | Befriended Subdweller 5899 | -10/Subcaves | Befriended Subdweller 5942 | -10/Subcaves | Visited Clippyterm 5947 | -10/Subcaves | Learned Research machine intel 5979 | -10/Subcaves | Befriended Subdweller 6097 | -10/Subcaves | Found Prototype Device 6209 | -10/Subcaves | Identified exit to Recycling 6329 | -10/Subcaves | Befriended Subdweller 6359 | -10/Subcaves | Befriended Subdweller 6399 | -10/Subcaves | Shifting Twisted Machinery released Barrage Gun 6471 | -10/Subcaves | A swath of the cavern ceiling suddenly collapsed 6471 | -10/Subcaves | Shifting Twisted Machinery released Sub. Power Source 6549 | -10/Subcaves | Befriended Subdweller 6609 | -10/Subcaves | Befriended Subdweller 6857 | -10/Subcaves | Met a Zionite searching for "candidates" 6959 | -10/Subcaves | Discovered exit to Materials (range 12) 7514 | -10/Subcaves | Befriended Subdweller 7531 | -10/Subcaves | A swath of the cavern ceiling suddenly collapsed 7629 | -10/Subcaves | Befriended Subdweller 7727 | -10/Subcaves | Visited 4L-MR0's lab 7734 | -10/Subcaves | Identified Power Bank 7744 | -10/Subcaves | Found Gun Armor 8303 | -10/Subcaves | Lost 3 allies 8347 | -10/Subcaves | Curiously followed by a Cobbler waking with a query about "LVR3C" 9666 | -10/Subcaves | Entered Recycling 9666 | -8/Recycling | Accompanied by 4 allies 9795 | -8/Recycling | Core integrity fell below 50% 9805 | -8/Recycling | Lost 3 allies 10182 | -8/Recycling | Discovered new exit (range 14) 10206 | -8/Recycling | Learned 8 Factory zone layouts 10239 | -8/Recycling | Identified exit to Scraptown 10264 | -8/Recycling | Learned location of 1 exit from Storage 10279 | -8/Recycling | Learned 4 Factory zone layouts 10284 | -8/Recycling | Learned 8 Factory zone layouts 10301 | -8/Recycling | Learned location of Extension (-4) 10326 | -8/Recycling | Learned location of Lower Caves (-6) 10702 | -8/Recycling | Build established: Commander-Mutant 10834 | -8/Recycling | Scanned before Scraplab entrance 10853 | -8/Recycling | Entered Scraplab 10883 | -8/Recycling | Entered Scraptown 10883 | -8/Scraptown | Accompanied by 9 allies 10883 | -8/Scraptown | System corruption cleaned by C-Scrubber 11242 | -8/Scraptown | Discovered new exit (range 7) 11328 | -8/Scraptown | Heard Great Nut preacher, LISTEN AND RECITE! 11344 | -8/Scraptown | Scanned Subdweller tech in exchange for log data 11346 | -8/Scraptown | Learned 8 Research zone layouts 11348 | -8/Scraptown | Learned location of Quarantine (-3) 11349 | -8/Scraptown | Learned Research security intel 11396 | -8/Scraptown | Visited CR-KLE's Repair Center 11419 | -8/Scraptown | Visited Symbiants 11471 | -8/Scraptown | Visited CPS Storage 11488 | -8/Scraptown | Visited Spacefarers 11588 | -8/Scraptown | Delivered V3-11A's Pendant to T0-NE2 in exchange for information 11827 | -8/Scraptown | Visited Shadow of the Wyrm 11851 | -8/Scraptown | Visited Cave Peace 11939 | -8/Scraptown | Visited Cyclists 11974 | -8/Scraptown | Visited UFD Registry 11992 | -8/Scraptown | Registered with UFD as "Slugtank" 12027 | -8/Scraptown | Visited Curators Association 12082 | -8/Scraptown | Visited Observation Area 12134 | -8/Scraptown | Visited Scrapoid Research Area 12189 | -8/Scraptown | Delivered Scrap Shield to a Scientist 12334 | -8/Scraptown | Visited Scrap Suit Storage 12365 | -8/Scraptown | Visited Infowarlord's Domain 12394 | -8/Scraptown | Visited Research Penetration Think Tank 12423 | -8/Scraptown | Visited Chapter 10 12459 | -8/Scraptown | Visited Junk Repository 12508 | -8/Scraptown | Visited Abandonware Association 12524 | -8/Scraptown | Learned abandonware demo "TRNCOAT.EXE" 12524 | -8/Scraptown | Learned abandonware demo "REBOOT5.EXE" 12555 | -8/Scraptown | Visited Derelict Rescue Squad 12817 | -8/Scraptown | Entered Cyclist Reading Room 12850 | -8/Scraptown | Released all parts (7) 12908 | -8/Scraptown | Discovered new exit (range 5) 13678 | -8/Scraptown | Found Exp. Terrain Scanner 14741 | -8/Scraptown | CR-KLE repaired 6 parts 15517 | -8/Scraptown | Entered Factory 15517 | -6/Factory | Accompanied by 9 allies 15517 | -6/Factory | Evolved 8 slots: Power x1, Propulsion x2, Utility x4, Weapon x1 15518 | -6/Factory | Identified exit to Lower Caves 15519 | -6/Factory | Identified exit to Factory 15565 | -6/Factory | Found Launcher Loader 15751 | -6/Factory | Sucked down chute 15751 | -6/Factory | Entered Waste 15752 | -6/Waste | Joined by Warlord forces that had cleared the area 15846 | -6/Waste | 1 allies followed down the chute 15886 | -6/Waste | 7 allies followed down the chute 16311 | -6/Waste | A Compactor rumbled back to life 16312 | -6/Waste | Spotted C-40 Crusher 16320 | -6/Waste | Allies destroyed C-40 Crusher 16672 | -6/Waste | Discovered new exit (range 12) 16809 | -6/Waste | Found Prototype Device 16809 | -6/Waste | Identified Exp. ECM Suite 16871 | -6/Waste | A Compactor rumbled back to life 16872 | -6/Waste | Destroyed C-40 Crusher 17162 | -6/Waste | Build established: Commander-Tank 17343 | -6/Waste | Entered Factory 17343 | -6/Factory | Accompanied by 26 allies 17502 | -6/Factory | Discovered exit to Lower Caves (range 52) 17594 | -6/Factory | Lost 6 allies 17795 | -6/Factory | Build established: Scavenger-Mutant 17829 | -6/Factory | Entered Lower Caves 17829 | -6/Lower Caves | Accompanied by 18 allies 17831 | -6/Lower Caves | UFD Scientist delivered a prototype 17835 | -6/Lower Caves | Found Prototype Protection 17835 | -6/Lower Caves | Identified Enh. Scrap Shield 17954 | -6/Lower Caves | Lost 9 allies 18240 | -6/Lower Caves | Lost 3 allies 18451 | -6/Lower Caves | Encountered a Warlord checkpoint 18942 | -6/Lower Caves | Build established: Scavenger-Tank 19604 | -6/Lower Caves | Discovered new exit (range 11) 19629 | -6/Lower Caves | Learned 4 Factory zone layouts 19697 | -6/Lower Caves | Entered another Lower Caves area 19697 | -6/Lower Caves | Accompanied by 5 allies 19745 | -6/Lower Caves | Discovered exit to Factory (range 8) 19797 | -6/Lower Caves | Prototype Device suddenly appears! 19816 | -6/Lower Caves | Found Prototype Device 19816 | -6/Lower Caves | Identified Amulet of Y3-NDR 19851 | -6/Lower Caves | Acquired the password to a Derelict Tinkerer's latest research 19928 | -6/Lower Caves | Learned location of 1 exit from Factory 19981 | -6/Lower Caves | Joined by bewildered Wizard 19981 | -6/Lower Caves | Joined by bewildered Wizard 19981 | -6/Lower Caves | Joined by bewildered Wizard 20033 | -6/Lower Caves | Joined by bewildered Wizard 20550 | -6/Lower Caves | Joined by bewildered Wizard 20595 | -6/Lower Caves | Lost 5 allies 20598 | -6/Lower Caves | Learned Research terminal intel 20598 | -6/Lower Caves | Learned location of 2 exits from Upper Caves 20598 | -6/Lower Caves | Identified exit to Zion 20598 | -6/Lower Caves | Learned location of 1 exit from Lower Caves 20618 | -6/Lower Caves | Joined by bewildered Wizard 21370 | -6/Lower Caves | Entered Zion 21370 | -6/Zion | Accompanied by 6 allies 21451 | -6/Zion | System corruption cleaned by Quarantine Array 21488 | -6/Zion | Received a hallucinogenic algorithm 21550 | -6/Zion | Discovered new exit (range 14) 21659 | -6/Zion | Build established: Mutant 22005 | -6/Zion | Build established: Scavenger-Tank 22095 | -6/Zion | Given A8's code to call for help 22173 | -6/Zion | Identified exit to Deep Caves 22238 | -6/Zion | Turned away by Imprinter 22294 | -6/Zion | Visited the Megawrench Repair Shop 22661 | -6/Zion | Gained Derelict followers 23003 | -6/Zion | Found CR-A16's Pointy Stick 23423 | -6/Zion | Megawrench repaired 8 parts 23530 | -6/Zion | Enhanced Grunt warped into view, answering call for help 23534 | -6/Zion | Enhanced Grunt warped into view, answering call for help 23613 | -6/Zion | Saw the warning signs outside the Deep Caves entrance 23746 | -6/Zion | Entered Deep Caves 23746 | -6/Deep Caves | Accompanied by 12 allies 23749 | -6/Deep Caves | Met 5H-AD0 24202 | -6/Deep Caves | Z-Facility disabled 24241 | -6/Deep Caves | Attacked by Z-Imprinter 24259 | -6/Deep Caves | Allies destroyed Z-Imprinter 24268 | -6/Deep Caves | Thanked by 5H-AD0 24304 | -6/Deep Caves | Lost 5 allies 24320 | -6/Deep Caves | Found Prototype Protection 24320 | -6/Deep Caves | Identified Zio. Weapon Casing 24943 | -6/Deep Caves | Discovered new exit (range 7) 25219 | -6/Deep Caves | Found Prototype Protection 25219 | -6/Deep Caves | Identified Zio. Heavy Carapace 25357 | -6/Deep Caves | Build established: Mutant 25372 | -6/Deep Caves | Found Zio. Heavy Carapace 25406 | -6/Deep Caves | Found Zio. Weapon Casing 25410 | -6/Deep Caves | Found Zio. Weapon Casing 25413 | -6/Deep Caves | Found Zio. Weapon Casing 25423 | -6/Deep Caves | Found Zio. Heavy Carapace 25905 | -6/Deep Caves | Found Prototype Device 25905 | -6/Deep Caves | Identified Exp. Thermal Shield 25918 | -6/Deep Caves | Murdered 3 allies 26014 | -6/Deep Caves | Build established: Scavenger-Mutant 26077 | -6/Deep Caves | Spotted AG-46397 26117 | -6/Deep Caves | Destroyed AG-46397 26202 | -6/Deep Caves | Spotted AG-26953 26241 | -6/Deep Caves | Destroyed AG-26953 26392 | -6/Deep Caves | Found Unknown Processor 26922 | -6/Deep Caves | Build established: Scavenger-Tank 27021 | -6/Deep Caves | Entered Proximity Caves 27099 | -5/Proximity Caves | Joined by bewildered Wizard 27100 | -5/Proximity Caves | Joined by bewildered Wizard 27167 | -5/Proximity Caves | Joined by bewildered Wizard 27169 | -5/Proximity Caves | Joined by bewildered Wizard 27795 | -5/Proximity Caves | Joined by bewildered Wizard 27795 | -5/Proximity Caves | Joined by bewildered Wizard 27962 | -5/Proximity Caves | Lost 4 allies 28212 | -5/Proximity Caves | Learned Factory emergency access door positions 28848 | -5/Proximity Caves | Discovered exit to Factory (range 15) 29067 | -5/Proximity Caves | Attracted the attention of an 0b10 base 29395 | -5/Proximity Caves | Learned Factory garrison access intel 29395 | -5/Proximity Caves | Learned Factory emergency access door positions 29404 | -5/Proximity Caves | Entered Factory 29404 | -5/Factory | Evolved 2 slots: Propulsion x1, Utility x1 29405 | -5/Factory | Identified exit to Factory 29408 | -5/Factory | Loaded intel: 4 garrison access locations 29494 | -5/Factory | Joined by bewildered Wizard 29494 | -5/Factory | Joined by bewildered Wizard 29494 | -5/Factory | Joined by bewildered Wizard 29536 | -5/Factory | Identified exit to Upper Caves 29565 | -5/Factory | Joined by bewildered Wizard 29686 | -5/Factory | Joined by bewildered Wizard 30028 | -5/Factory | Lost 3 allies 30031 | -5/Factory | Joined by bewildered Wizard 30038 | -5/Factory | Joined by bewildered Wizard 30097 | -5/Factory | Joined by bewildered Wizard 30097 | -5/Factory | Joined by bewildered Wizard 30209 | -5/Factory | Identified Surveybot 24 Chip 30252 | -5/Factory | Fabricated HERF Cannon (x2) 30422 | -5/Factory | Joined by bewildered Wizard 30997 | -5/Factory | Entered Upper Caves 30998 | -5/Upper Caves | Identified exit to Upper Caves 31034 | -5/Upper Caves | Joined by bewildered Wizard 31035 | -5/Upper Caves | Joined by bewildered Wizard 31036 | -5/Upper Caves | Joined by bewildered Wizard 31047 | -5/Upper Caves | Joined by bewildered Wizard 31999 | -5/Upper Caves | Encountered a Warlord checkpoint 32344 | -5/Upper Caves | Spotted B-75 Beast 32377 | -5/Upper Caves | Joined by bewildered Wizard 32665 | -5/Upper Caves | Entered another Upper Caves area 32665 | -5/Upper Caves | Accompanied by 4 allies 32666 | -5/Upper Caves | Identified exit to Zhirov 32707 | -5/Upper Caves | Discovered exit to Factory (range 7) 32830 | -5/Upper Caves | Learned Factory security intel 34261 | -5/Upper Caves | Attracted the attention of an 0b10 outpost 34267 | -5/Upper Caves | Joined by bewildered Wizard 34268 | -5/Upper Caves | Joined by bewildered Wizard 34300 | -5/Upper Caves | Joined by bewildered Wizard 34302 | -5/Upper Caves | Joined by bewildered Wizard 34311 | -5/Upper Caves | Lost 4 allies 34401 | -5/Upper Caves | Entered Zhirov 34401 | -5/Zhirov | Accompanied by 7 allies 34403 | -5/Zhirov | Discovered new exit (range 3) 34433 | -5/Zhirov | Met Zhirov 34475 | -5/Zhirov | Learned location of Testing (-2) 34475 | -5/Zhirov | Learned location of Command (-1) 34489 | -5/Zhirov | Zhirov requested help retrieving the SGEMP Prototype 34517 | -5/Zhirov | Found Alien Artifact 34517 | -5/Zhirov | Identified Integrated Reactor 34517 | -5/Zhirov | Installed Integrated Reactor, increased core energy generation (+10) 34597 | -5/Zhirov | Found Alien Artifact 34695 | -5/Zhirov | Entered Proximity Caves 34695 | -4/Proximity Caves | Accompanied by 7 allies 34976 | -4/Proximity Caves | Spotter reported a threat 35029 | -4/Proximity Caves | Spotter reported a threat 35079 | -4/Proximity Caves | Joined by bewildered Wizard 35080 | -4/Proximity Caves | Joined by bewildered Wizard 35167 | -4/Proximity Caves | Attracted the attention of an 0b10 outpost 35224 | -4/Proximity Caves | Lost 7 allies 35236 | -4/Proximity Caves | Joined by bewildered Wizard 35236 | -4/Proximity Caves | Joined by bewildered Wizard 35238 | -4/Proximity Caves | Joined by bewildered Wizard 35311 | -4/Proximity Caves | Joined by bewildered Wizard 35631 | -4/Proximity Caves | Discovered exit to Factory (range 5) 36752 | -4/Proximity Caves | Entered Factory 36752 | -4/Factory | Accompanied by 5 allies 36752 | -4/Factory | Evolved 2 slots: Propulsion x1, Utility x1 36753 | -4/Factory | Identified exit to Extension 36799 | -4/Factory | Joined by bewildered Wizard 37002 | -4/Factory | Search patrols dispatched 37236 | -4/Factory | Joined by bewildered Wizard 37315 | -4/Factory | Lost 4 allies 37499 | -4/Factory | Joined by bewildered Wizard 37541 | -4/Factory | Lost 3 allies 37750 | -4/Factory | Entered Extension 38181 | -4/Extension | Rescued a captive Derelict 38183 | -4/Extension | Rescued a captive Derelict 38245 | -4/Extension | Rescued a captive Derelict 38275 | -4/Extension | Energy Cycler disabled 38275 | -4/Extension | Rescued a captive Derelict 38275 | -4/Extension | Rescued a captive Derelict 38275 | -4/Extension | Rescued a captive Derelict 38276 | -4/Extension | Rescued a captive Derelict 38278 | -4/Extension | Rescued a captive Derelict 38282 | -4/Extension | Rescued a captive Derelict 38304 | -4/Extension | Rescued A7 38665 | -4/Extension | Spotted B-86 Titan 38675 | -4/Extension | Spotted B-86 Titan 38687 | -4/Extension | Revealed the true nature of CR-A16's Pointy Stick 38687 | -4/Extension | Destroyed B-86 Titan 38692 | -4/Extension | Discovered new exit (range 12) 38699 | -4/Extension | Destroyed B-86 Titan 38736 | -4/Extension | Extracted ID and sensor layout for unrecognized location from A7's data core 38740 | -4/Extension | Found Med. Regenerative Plating 38841 | -4/Extension | Lost 4 allies 39098 | -4/Extension | Lost 3 allies 39250 | -4/Extension | First assault squad dispatched 39402 | -4/Extension | Discovered new exit (range 10) 39403 | -4/Extension | Discovered new exit (range 6) 39440 | -4/Extension | Entered Cetus 39440 | -4/Cetus | Accompanied by 3 allies 39462 | -4/Cetus | Spotted Cetus Guard 39462 | -4/Cetus | Spotted Cetus Guard 39464 | -4/Cetus | Spotted Cetus Guard 39471 | -4/Cetus | Spotted Cetus Guard 39473 | -4/Cetus | Destroyed Cetus Guard 39483 | -4/Cetus | Allies destroyed Cetus Guard 39494 | -4/Cetus | Destroyed Cetus Guard 39500 | -4/Cetus | Destroyed Cetus Guard 39654 | -4/Cetus | Discovered new exit (range 15) 39681 | -4/Cetus | Spotted Cetus Guard 39681 | -4/Cetus | Spotted Cetus Guard 39683 | -4/Cetus | Spotted Cetus Guard 39695 | -4/Cetus | Destroyed Cetus Guard 39709 | -4/Cetus | Destroyed Cetus Guard 39717 | -4/Cetus | Destroyed Cetus Guard 39717 | -4/Cetus | Spotted Cetus Guard 39733 | -4/Cetus | Destroyed Cetus Guard 39774 | -4/Cetus | Discovered new exit (range 15) 39782 | -4/Cetus | Met Revision 17 39786 | -4/Cetus | System corruption reached 10% 39868 | -4/Cetus | Entered Archives 40038 | -4/Archives | Discovered new exit (range 15) 40093 | -4/Archives | Discovered new exit (range 15) 40164 | -4/Archives | Discovered new exit (range 15) 40993 | -4/Archives | Entered Hub_04(d) 40993 | -4/Hub_04(d) | Accompanied by 1 ally 41241 | -4/Hub_04(d) | Discovered new exit (range 15) 41585 | -4/Hub_04(d) | Network Hub disabled 41628 | -4/Hub_04(d) | Entered Research 41628 | -3/Research | Evolved 2 slots: Utility x2 41629 | -3/Research | Identified exit to Research 41631 | -3/Research | Loaded intel: 114 machine locations 41632 | -3/Research | Loaded intel: 24 terminal locations 41675 | -3/Research | Identified Transdimensional Reconstructor 41675 | -3/Research | Central database locked down 41734 | -3/Research | Discovered new exit (range 30) 41813 | -3/Research | Joined by bewildered Wizard 41823 | -3/Research | Joined by bewildered Wizard 41828 | -3/Research | Revision forces began assault on 0b10 41833 | -3/Research | Identified exit to Armory 41833 | -3/Research | Identified exit to Quarantine 41867 | -3/Research | Joined by bewildered Wizard 41868 | -3/Research | Joined by bewildered Wizard 41877 | -3/Research | Met up with Revision 17++ 41898 | -3/Research | Joined by bewildered Wizard 41902 | -3/Research | Found Prototype Processor 41902 | -3/Research | Identified Exp. Target Analyzer 41919 | -3/Research | Joined by bewildered Wizard 41924 | -3/Research | Lost 4 allies 42046 | -3/Research | Lost 3 allies 42143 | -3/Research | Repaired Corrupted Adv. KE Penetrator 42206 | -3/Research | Repaired Corrupted Adv. KE Penetrator 42328 | -3/Research | Research terminal network offline 42488 | -3/Research | Entered Quarantine 42662 | -3/Quarantine | Discovered exit to Research (range 29) 43019 | -3/Quarantine | Cryocooling Duct disabled 43034 | -3/Quarantine | Ambient heat levels rising (+20) 43034 | -3/Quarantine | Non-combat units ordered to evacuate 43054 | -3/Quarantine | Repaired Imp. Force Field 43470 | -3/Quarantine | Found Alien Artifact 43475 | -3/Quarantine | Identified Subatomic Replicator 43561 | -3/Quarantine | Found Prototype Device 43561 | -3/Quarantine | Identified Exp. Shield Generator 43562 | -3/Quarantine | System corruption reached 10% 43941 | -3/Quarantine | Entered Research 43941 | -2/Research | Evolved 2 slots: Power x1, Utility x1 43942 | -2/Research | Identified exit to Testing 43997 | -2/Research | Joined by bewildered Wizard 43997 | -2/Research | Joined by bewildered Wizard 44048 | -2/Research | Joined by bewildered Wizard 44049 | -2/Research | Joined by bewildered Wizard 44281 | -2/Research | Build established: Scavenger-Gunner 44370 | -2/Research | Found Prototype Device 44373 | -2/Research | Found Prototype Device 44382 | -2/Research | Lost 3 allies 44404 | -2/Research | Joined by bewildered Wizard 44404 | -2/Research | Joined by bewildered Wizard 45143 | -2/Research | System corruption reached 10% 45191 | -2/Research | First assault squad dispatched 45258 | -2/Research | Build established: Scavenger-Tank 45283 | -2/Research | Identified Adv. EM Shield (x2) 45295 | -2/Research | Discovered new exit (range 27) 45402 | -2/Research | Spotted B-90 Cyclops 45469 | -2/Research | Found Prototype Device 45488 | -2/Research | Entered Testing 45536 | -2/Testing | Spotted PH-UOPNYNGBI6 45711 | -2/Testing | Identified Exp. Focal Shield 45988 | -2/Testing | First assault squad dispatched 46321 | -2/Testing | Discovered new exit (range 24) 46911 | -2/Testing | Found Prototype Processor 46955 | -2/Testing | Identified Exp. Core Analyzer 47031 | -2/Testing | Build established: Scavenger-Gunner 47263 | -2/Testing | Found Prototype Protection 47263 | -2/Testing | Identified Hvy. Regenerative Plating 47267 | -2/Testing | Found Prototype Protection 47267 | -2/Testing | Identified SHELL Armor 47318 | -2/Testing | Found Prototype Protection 47318 | -2/Testing | Identified Centrium Heavy Armor Plating 47443 | -2/Testing | Spotted Fortress 47445 | -2/Testing | Attached CPS modules to Fortress. 47507 | -2/Testing | Destroyed Fortress 47521 | -2/Testing | Found Prototype Device 47521 | -2/Testing | Identified Exp. EM Shield 47529 | -2/Testing | Found Prototype Device 47529 | -2/Testing | Identified Thermal Barrier 47536 | -2/Testing | Found Prototype Device 47536 | -2/Testing | Identified Exp. Force Field 47564 | -2/Testing | Found Prototype Reactor 47564 | -2/Testing | Identified Vortex Chain Reactor 47811 | -2/Testing | Build established: Scavenger-Tank 47886 | -2/Testing | Discovered new exit (range 6) 47886 | -2/Testing | Discovered new exit (range 6) 47896 | -2/Testing | Entered Section 7 47984 | -2/Section 7 | Found Alien Artifact 48056 | -2/Section 7 | Identified Integrated Dissipator 48056 | -2/Section 7 | Installed Integrated Dissipator, increased core heat dissipation (+20) 48104 | -2/Section 7 | Identified exit to Access 48127 | -2/Section 7 | Spotted B-90 Cyclops 48184 | -2/Section 7 | Destroyed B-90 Cyclops 48289 | -2/Section 7 | Found Integrated Reactor 48289 | -2/Section 7 | Installed Integrated Reactor, increased core energy generation (+10) 48317 | -2/Section 7 | Spotted S7 Guard 48333 | -2/Section 7 | Destroyed S7 Guard 48350 | -2/Section 7 | Found Alien Artifact 48396 | -2/Section 7 | Identified Core Regenerator 48428 | -2/Section 7 | Found Alien Artifact 48466 | -2/Section 7 | Identified Integrated Mediator 48466 | -2/Section 7 | Installed Integrated Mediator, increased core attachment efficiency 48805 | -2/Section 7 | Repaired Broken Adv. KE Penetrator? 48941 | -2/Section 7 | Spotted S7 Guard 48963 | -2/Section 7 | Destroyed S7 Guard 48978 | -2/Section 7 | Found Alien Artifact 49272 | -2/Section 7 | Destroyed 10 combat bots 49339 | -2/Section 7 | Spotted S7 Guard 49357 | -2/Section 7 | Destroyed S7 Guard 49370 | -2/Section 7 | Found Alien Artifact 49396 | -2/Section 7 | First assault squad dispatched 49427 | -2/Section 7 | Spotted Executioner 49427 | -2/Section 7 | Spotted Executioner 49446 | -2/Section 7 | Destroyed Executioner 49453 | -2/Section 7 | Destroyed Executioner 49478 | -2/Section 7 | Found Exp. Core Analyzer 49708 | -2/Section 7 | Spotted B-99 Colossus 49773 | -2/Section 7 | Found Integrated Dissipator 49773 | -2/Section 7 | Installed Integrated Dissipator, increased core heat dissipation (+20) 49776 | -2/Section 7 | Found Integrated Dissipator 49776 | -2/Section 7 | Installed Integrated Dissipator, increased core heat dissipation (+20) 49779 | -2/Section 7 | Found Integrated Dissipator 49779 | -2/Section 7 | Installed Integrated Dissipator, increased core heat dissipation (+20) 49844 | -2/Section 7 | Found Alien Artifact 49844 | -2/Section 7 | Identified LRC Inertial Stabilizer 49844 | -2/Section 7 | Installed LRC Inertial Stabilizer, increased mass support (+10) 49847 | -2/Section 7 | Found Alien Artifact 49847 | -2/Section 7 | Identified LRC Energy Well 49847 | -2/Section 7 | Installed LRC Energy Well, increased energy storage capacity (+250) 50080 | -2/Section 7 | Destroyed 7 combat bots 50268 | -2/Section 7 | Destroyed 12 combat bots 50386 | -2/Section 7 | Found Alien Artifact 50389 | -2/Section 7 | Found Transdimensional Reconstructor 50443 | -2/Section 7 | Found Prototype Device 50443 | -2/Section 7 | Identified Adv. Kinecellerator 50689 | -2/Section 7 | High security lockdown imminent 50769 | -2/Section 7 | High security lockdown engaged 50954 | -2/Section 7 | Destroyed 13 combat bots 51058 | -2/Section 7 | Identified Hpw. Transdimensional Reconstructor 51058 | -2/Section 7 | Warped through subspace 51059 | -2/Section 7 | Identified Navigation Efficiency Matrix 51059 | -2/Section 7 | Installed Navigation Efficiency Matrix, process failed with unexpected side effects 51060 | -2/Section 7 | Identified Core Membrane 51060 | -2/Section 7 | Installed Core Membrane, gained immunity to corruption 51168 | -2/Section 7 | Warped through subspace 51237 | -2/Section 7 | Scanned by Researcher 51238 | -2/Section 7 | Intercept squad dispatched 51240 | -2/Section 7 | Spotted Investigator 51248 | -2/Section 7 | Spotted Tracker 51249 | -2/Section 7 | Spotted Tracker 51255 | -2/Section 7 | Destroyed Tracker 51263 | -2/Section 7 | Destroyed Tracker 51273 | -2/Section 7 | Destroyed Investigator 51294 | -2/Section 7 | Spotted Combat Programmer 51295 | -2/Section 7 | Spotted Combat Programmer 51313 | -2/Section 7 | Core integrity fell below 50% 51325 | -2/Section 7 | Spotted Executioner 51326 | -2/Section 7 | Destroyed 19 combat bots 51326 | -2/Section 7 | Core integrity fell below 20% 51326 | -2/Section 7 | Spotted Executioner 51330 | -2/Section 7 | Destroyed by Combat Programmer with EMDS Last Messages --------------- 51326_ Surveybot 24 Chip destroyed. 51326_ Penetrated by Slug. 51327_ Stasis bubble strength at 114. 51327_ C-45 Heavy ARC bursts open, deploying its payload. 51327_ G-73 Enforcer unfolds itself. 51327_ E-15 Imp unfolds itself. 51328_ Amulet of Y3-NDR destroyed. 51328_ Stasis bubble strength at 105. 51328_ Penetrated by EMDS Slug. 51328_ Core Membrane filtered system corruption (1). 51328_ Penetrated by EMDS Slug. 51329_ Stasis bubble strength at 96. 51329_ Adv. Weapon Cycler destroyed. 51329_ Penetrated by Slug. 51329_ Graphene Brace destroyed. 51329_ Slug penetrates Wall. 51329_ Penetrated by Slug. 51330_ M-36 Artificer repairs G-73 Enforcer. 51330_ Stasis bubble strength at 85. 51330_ Core Membrane filtered system corruption (1). Map ----- +----------------------------------------------------+ | # ### ####### # ###### #### | | # ### ####### """ # ######""" #### | | # ### ####### "T" # ######""" #### | | # = ### ####### " + ######""" #### | | ###+###### ####### # ######""" #### | | + # ###### # ######""" #### | | # """ # ###### #### ######""" #### | | + """ # / #### ######""" #### | | ## """ # ###### #### ###### #### | | ## """ # ################## ################## | | ## """ # !=# # #"################## | | ## """ # %# "" " # "%/%################## | | ## """ # =# """ # # ################## | | ## # # [!; # ################## | | ##"S # # /!%== # ################## | | ##"" # # [*=[*!% ] # ################## | | ## "" # # =/g!%%[#######C################## | | ## # " # =ig===[ ######h################## | | #####+###"%" #####;g=g=% ;## p ############# | | %"%" E=p[mg=*= % # """"""" ############# | | "% %!/*%==% % # """"""" ############# | | =E==%/%%=i=h# """"""" ############# | | ggg=%= |g!p; ############# | | ###+##########; g*%=[ !%*pp# ############# | | = ## [==[;;%ei!# """ """ ############# | | """ ## % =! ##!!@!# """S""" ############# | | " "# *% #####;;;##################### | | """ ## =""##### ##################### | | " "" ##%"""%""############################# | | """"" ##"""*"""############################# | | ###################################### | | ################################################## | | | | | | | | | | | | | | | | | | | | | | | | | | | | | | | | | | | | | +----------------------------------------------------+ Best States ------------- Heat Dissipation 155 Energy Generation 99 Energy Capacity 1200 Matter Stores 470 Matter Capacity 500 Sight Range 16 Robot Scan Range 16 Terrain Scan Range 30 Terrain Scan Density 2010 ECM Strength 3 Jamming Range 14 Armor Coverage 2400 Resistance: KI 30 Resistance: TH 50 Resistance: EM 75 Utility Shielding 90 Weapon Shielding 100 Weapon Cycling 25 Evasion (%) 50 Targeting Accuracy 8 Melee Accuracy 5 Core Analysis 8 Recoil Reduction 6 Particle Charging 25 Offensive Hacking 14 Trap Extractor Capacity 4 Item Schematics ----------------- Huge Storage Unit | -10/Materials | Hacked Plasma Cutter | -8/Recycling | Hacked Hrd. Medium Armor Plating | -8/Recycling | Hacked Adv. Cryofiber Web | -6/Factory | Hacked Imp. Hardlight Generator | -6/Zion | Archive Adv. Trap Extractor | -6/Zion | Archive Hvy. Flak Cannon | -6/Zion | Archive Remote Force Field | -6/Zion | Archive Adv. Melee Analysis Suite | -6/Zion | Archive Disruptor Cannon | -6/Zion | Archive Lgt. Fission Core | -6/Zion | Archive Hvy. Gauss Cannon | -6/Zion | Archive Imp. Antigrav System | -6/Zion | Archive Energy Well | -6/Zion | Archive Imp. Launcher Guidance Computer | -6/Zion | Archive Enh. Gauss Cannon | -6/Zion | Archive Plasma Rifle | -6/Zion | Archive Adv. Heat Sink | -6/Zion | Archive Lrn. Tractor Beam | -6/Zion | Archive Assault Drone Bay | -5/Zhirov | Free Exp. Heat Sink | -5/Zhirov | Free Exp. Optical Array | -5/Zhirov | Free Imp. Arc Thrower | -5/Zhirov | Free CPS Tube | -3/Research | Scanalyzed Imp. Force Field | -3/Research | Scanalyzed Exp. Matter Compressor | -3/Quarantine | Archive Nanosword | -3/Quarantine | Archive Prc. Phase Gun | -3/Quarantine | Archive Hvy. Gatling Laser | -3/Quarantine | Archive Electron Diverter | -3/Quarantine | Archive Matter Neutralizer | -3/Quarantine | Scanalyzed Exp. Energy Well | -2/Testing | Archive Hvy. Tesla Rifle | -2/Testing | Archive Cld. Impulse Thruster | -2/Testing | Archive Lgt. Regenerative Plating | -2/Testing | Hacked Robot Schematics ------------------ M-13 Machinist | -10/Materials | Hacked G-50 Soldier | -6/Zion | Archive A-15 Conveyor | -6/Zion | Archive R-06 Scavenger | -6/Zion | Archive G-73 Enforcer | -6/Zion | Archive A-27 Freighter | -3/Quarantine | Archive Fabricated ------------ HERF Cannon | x2 | -5/Factory | Preloaded Repaired ---------- Lgt. Treads | 74% | -10/Materials Lgt. Treads | 77% | -10/Materials Adv. KE Penetrator | 23% | -3/Research | Corrupted Adv. KE Penetrator | 79% | -3/Research | Corrupted Imp. Force Field | 30% | -3/Quarantine Adv. KE Penetrator | 21% | -2/Section 7 | Broken Studied --------- Gatling Laser | -5/Factory | Hacked Matter Neutralizer | -3/Research | Hacked Particle Reactor | -3/Research | Hacked Antimatter Reactor | -3/Research | Hacked Com. HERF Cannon | -3/Quarantine | Hacked Enh. Nova Cannon | -2/Research | Hacked Alien Tech Used ----------------- Integrated Reactor Subatomic Replicator Integrated Dissipator Integrated Mediator LRC Inertial Stabilizer LRC Energy Well High-powered Transdimensional Reconstructor Navigation Efficiency Matrix Core Membrane Transdimensional Reconstructor Achievements -------------- Betrayal Most Foul Bob, First Of His Name Civilization 2243 Coming In Hot Live, Flee, And Rebuild Loot Taster Low-level Research Ponder That! Rodney's Helpers SUBSUB Challenges ------------ None Game ------ Seed LargeLightCannon Manual? 0 Play Time 09:02:25 Cumulative 419.4 hours Start 2025.12.06 @ 16:33:01 End 2025.12.07 @ 13:03:26 Sessions 3 Manual Loads 0 Difficulty Rogue Special Mode None Game No. 147 Rogue 147 Adventurer 0 Explorer 0 Win Type - Total 8 Types 4/0/2/1/0/0/1/0/0/0 Lore% 70 Gallery% 78 Achievement% 60 Wizard Run 0 Options --------- Layout 0 ASCII 0 Keyboard 0 Movement Numpad Keybinds 1 Fullscreen 2 Font 18/X11 Map View 76x50 Zoom Use 0% Tactical HUD 1 Map Filters NONE Filters NONE Steam 1 RUN: b044bc3a-bd01-477e-a5c5-517abfa2fe94